Workbook

Sheet Portada
F5: Penner Automotores S.R.L.
F8: Estados financieros correspondientes al
F9: ejercicio finalizado el 30 de setiembre de 2021
B18: Orlando Penner | F18: Ronald Duerksen | J18: Carlos Ruffinelli
B19: Representante Legal | F19: Contador | J19: Síndico

Sheet Indice
B1: Sociedad: | C1: PENNER AUTOMOTORES S.R.L.
S2: 1 | T2: Enero
S3: 2 | T3: Febrero
S4: 3 | T4: Marzo
S5: 4 | T5: Abril
A6: Fecha Presentación: | B6: 2021-09-30 | S6: 5 | T6: Mayo
S7: 6 | T7: Junio
S8: 7 | T8: Julio
C9: INDICE | D9: REF. | S9: 8 | T9: Agosto
B10: Informacion General | S10: 9 | T10: Septiembre
C11: Descripción de la naturaleza y del negocio de la Sociedad | D11: Nota 1 | S11: 10 | T11: Octubre
C12: Resumen de las principales políticas contables | D12: Nota 2 | S12: 11 | T12: Noviembre
B13: Balance General | D13: BG | S13: 12 | T13: Diciembre
C14: Efectivo y equivalente de efectivo | D14: Nota 3
C15: Inversiones temporales | D15: Nota 4
C16: Cuentas por cobrar comerciales | D16: Nota 5
C17: Otros créditos | D17: Nota 6
C18: Cuentas por cobrar comerciales | D18: Nota 5
C19: Inventarios | D19: Nota 7
C20: Inversión en asociadas | D20: Nota 8
C21: Propiedades, planta y equipo | D21: Nota 9
C22: Activos disponibles para la venta | D22: Nota 10
C23: Activos intangibles | D23: Nota 11
C24: Goodwill | D24: Nota 12
C25: Cuentas por pagar comerciales | D25: Nota 13
C26: Préstamos a corto plazo | D26: Nota 14
C27: Porción corriente de la deuda a largo plazo | D27: Nota 15
C28: Remuneraciones y cargas sociales a pagar | D28: Nota 16
C29: Impuestos a pagar | D29: Nota 17
C30: Provisiones | D30: Nota 18
C31: Otros pasivos corrientes | D31: Nota 19
C32: Prestamos a largo plazo | D32: Nota 14
C33: Otros pasivos no corrientes | D33: Nota 19
C34: Capital integrado | D34: Nota 20
C35: Reserva de revalúo | D35: Nota 21
C36: Reserva legal | D36: Nota 21
C37: Reservas estatutarias | D37: Nota 21
C38: Reservas facultativas | D38: Nota 21
C39: Diferencia transitoria por conversión | D39: Nota 22
C40: Resultados acumulados | D40: Nota 23
C41: Interés minoritario | D41: Nota 24
B42: Estado de Resultados | D42: ER
C43: Ventas | D43: Nota 25
C44: Costo de ventas | D44: Nota 26
C45: Gastos de ventas | D45: Nota 27
C46: Gastos administrativos | D46: Nota 27
C47: Otros ingresos y gastos operativos | D47: Nota 28
C48: Ingresos financieros - neto | D48: Nota 29
C49: Gastos financieros - neto | D49: Nota 29
C50: Resultado de inversiones en asociadas | D50: Nota 30
C51: Resultado participación minoritaria | D51: Nota 31
C52: Impuesto a la renta | D52: Nota 32
C53: Resultado extraordinario neto de impuesto a la renta | D53: Nota 33
C54: Resultado sobre actividades discontinuadas neto de impuesto a la renta | D54: Nota 34
C55: Utilidad/(Pérdida) neta del año | D55: Nota 35
C56: Utilidad neta por acción ordinaria | D56: Nota 35
B57: Estado de Evolución del Patrimonio Neto | D57: EVPN
B58: Estado de Flujos de Efectivo | D58: EFE
B59: Otras Notas de los Estados Financieros
C60: Activos gravados | D60: Nota 36
C61: Contingencias y compromisos | D61: Nota 37
C62: Impuesto diferido | D62: Nota 38
C63: Hechos posteriores | D63: Nota 39
C64: Saldos y transacciones con partes relacionadas | D64: Nota 40

Sheet BG
D1: =Indice!C1 -> PENNER AUTOMOTORES S.R.L. | E1: Indice
A7: BALANCE GENERAL
A8: =IFERROR(IF(Indice!B6="","Al dia... de mes… de año 2XX2…","Al "&DAY(Indice!B6)&" de "&VLOOKUP(MONTH(Indice!B6),Indice!S:T,2,0)&" de "&YEAR(Indice!B6)),"Al dia... de mes… de año 2XX2…") -> Al 30 de Septiembre de 2021
A9: (En miles de guaraníes)
E11: Nota | F11: 2021-09-30 | G11: 2020-12-31
B12: ACTIVOS
B13: Activos Corrientes
C14: Efectivo y equivalente de efectivo | E14: 3 | F14: ='Nota 3'!C24 -> 2937749.893 | G14: ='Nota 3'!D24 -> 3013281.672
C15: Inversiones temporales | E15: 4 | F15: ='Nota 4'!B18 -> 0 | G15: ='Nota 4'!C18 -> 0
C16: Cuentas por cobrar comerciales | E16: 5 | F16: ='Nota 5'!C11 -> 22682198.96 | G16: ='Nota 5'!D11 -> 26231356.91
C17: Otros créditos | E17: 6 | F17: ='Nota 6'!B18 -> 17195489.38 | G17: ='Nota 6'!C18 -> 9915644.161
C18: Inventarios | E18: 7 | F18: ='Nota 7'!B14 -> 7921836.559 | G18: ='Nota 7'!C14 -> 19014695.35
C19: Total activos corrientes | F19: =SUM(F14:F18) -> 50737274.79 | G19: =SUM(G14:G18) -> 58174978.09
B20: Activos no Corrientes
C21: Otros créditos | E21: 6 | F21: ='Nota 6'!F18 -> 5410483.96 | G21: ='Nota 6'!G18 -> 8340941.027
C22: Cuentas por cobrar comerciales | E22: 5 | F22: ='Nota 5'!C21 -> 23039814.38 | G22: ='Nota 5'!D21 -> 29218604.83
C23: Inversión en asociadas | E23: 8 | F23: ='Nota 8'!B8 -> 0 | G23: ='Nota 8'!C8 -> 0
C24: Propiedades, planta y equipo/Bienes de uso, neto | E24: 9 | F24: ='Nota 9'!L17 -> 29461249.65 | G24: ='Nota 9'!M17 -> 30504655.64
C25: Inversiones en Inmuebles | E25: 10 | F25: ='Nota 10'!B30 -> 13222000.15 | G25: ='Nota 10'!C30 -> 13811601.26
C26: Activos intangibles | E26: 11 | F26: ='Nota 11'!B10 -> 48435.449 | G26: ='Nota 11'!C10 -> 70188.507
C27: Goodwill | E27: 12 | F27: ='Nota 12'!B11 -> 0 | G27: ='Nota 12'!C11 -> 0
C28: Total activos no corrientes | F28: =SUM(F21:F27) -> 71181983.58 | G28: =SUM(G21:G27) -> 81945991.26
B29: Total Activos | F29: =+F19+F28 -> 121919258.4 | G29: =+G19+G28 -> 140120969.4
B30: PASIVOS Y PATRIMONIO NETO
B31: Pasivos corrientes | F31: -1
C32: Cuentas por pagar comerciales | E32: 13 | F32: ='Nota 13'!D13 -> 6837304.193 | G32: ='Nota 13'!E13 -> 11879229.44
C33: Préstamos a corto plazo | E33: 14 | F33: ='Nota 14'!E35 -> 38513089.89 | G33: ='Nota 14'!K35 -> 34852483.07
C34: Porción corriente de la deuda a largo plazo | E34: 15 | F34: ='Nota 15'!B15 -> 0 | G34: ='Nota 15'!C15 -> 0
C35: Remuneraciones y cargas sociales a pagar | E35: 16 | F35: ='Nota 16'!B11 -> 243355.158 | G35: ='Nota 16'!C11 -> 199577.03
C36: Impuestos a pagar | E36: 17 | F36: ='Nota 17'!B11 -> 160222.938 | G36: ='Nota 17'!C11 -> 0
C37: Provisiones | E37: 18 | F37: ='Nota 18'!B12 -> 513508.582 | G37: ='Nota 18'!C12 -> 8873.075
C38: Otros pasivos corrientes | E38: 19 | F38: ='Nota 19'!B10 -> 78248.445 | G38: ='Nota 19'!C10 -> 71691.014
C39: Total Pasivos Corrientes | F39: =SUM(F32:F38) -> 46345729.2 | G39: =SUM(G32:G38) -> 47011853.62
B40: Pasivos no corrientes
C41: Préstamos a largo plazo | E41: 14 | F41: ='Nota 14'!E64 -> 42185205.17 | G41: ='Nota 14'!K64 -> 54739159.25
C42: Otros pasivos no corrientes | E42: 19 | F42: ='Nota 19'!F10 -> 0 | G42: ='Nota 19'!G10 -> 0
C43: Total pasivos no corrientes | F43: =SUM(F41:F42) -> 42185205.17 | G43: =SUM(G41:G42) -> 54739159.25
B45: Total Pasivos | F45: =+F39+F43 -> 88530934.38 | G45: =+G39+G43 -> 101751012.9
B46: Patrimonio Neto
C47: Capital integrado | E47: 20 | F47: ='Nota 20'!B11 -> 38500000 | G47: ='Nota 20'!C11 -> 38500000
C48: Reserva de revalúo | E48: 21 | F48: =' Nota 21'!B8 -> 2951187.75 | G48: =' Nota 21'!C8 -> 2951187.75
C49: Reserva legal | E49: 21 | F49: =' Nota 21'!B13 -> 1274957.479 | G49: =' Nota 21'!C13 -> 1274957.479
C50: Revalúo Tecnico | E50: 21 | F50: =' Nota 21'!B17 -> 1014.632 | G50: =' Nota 21'!C17 -> 1014.632
C51: Diferencia transitoria por conversión | E51: 22 | F51: ='Nota 22'!B8 -> 0 | G51: ='Nota 22'!C8 -> 0
C52: Resultados acumulados | E52: 23 | F52: ='Nota 23'!B10 -> -9338835.866 | G52: ='Nota 23'!C10 -> -4357203.376
C53: Subtotal | F53: =SUM(F47:F52) -> 33388324 | G53: =SUM(G47:G52) -> 38369956.48
C54: Interés minoritario | E54: 24 | F54: ='Nota 24'!B8 -> 0 | G54: ='Nota 24'!C8 -> 0
B55: Total Patrimonio Neto | F55: =F53 -> 33388324 | G55: =G53 -> 38369956.48
B56: Total Pasivos y Patrimonio Neto | F56: =+F45+F55 -> 121919258.4 | G56: =+G45+G55 -> 140120969.4
B57: Las notas que se acompañan forman parte integrante de estos estados.

Sheet ER
A1: =Indice!C1 -> PENNER AUTOMOTORES S.R.L. | B1: Indice | D1: =ER!A4 -> 
A7: ESTADO DE RESULTADOS
A8: =IFERROR(IF(Indice!B6="","Al dia... de mes… de año 2XX2…","Al "&DAY(Indice!B6)&" de "&VLOOKUP(MONTH(Indice!B6),Indice!S:T,2,0)&" de "&YEAR(Indice!B6)),"Al dia... de mes… de año 2XX2…") -> Al 30 de Septiembre de 2021
A9: Comparativo con igual período del año anterior
A10: (En miles de guaraníes)
B12: Nota | C12: 2021-09-30 | D12: 2020-09-30
A13: Ventas | B13: 25 | C13: ='Nota 25'!B17 -> 54169881.03 | D13: ='Nota 25'!C17 -> 51847152.73
A14: Costo de ventas | B14: 26 | C14: =-'Nota 26'!B24 -> -44035566.45 | D14: =-'Nota 26'!C24 -> -40732134.85
A15: Utilidad bruta | C15: =C13+C14 -> 10134314.58 | D15: =D13+D14 -> 11115017.88
A16: Gastos de ventas | B16: 27 | C16: =-'Nota 27'!B33 -> -1622625.845 | D16: =-'Nota 27'!E33 -> -1894153.581
A17: Gastos administrativos | B17: 27 | C17: =-'Nota 27'!C33 -> -6173502.989 | D17: =-'Nota 27'!F33 -> -6114175.969
A18: Otros ingresos y gastos operativos | B18: 28
A19: Resultado operativo | C19: =SUM(C15:C18) -> 2338185.741 | D19: =SUM(D15:D18) -> 3106688.334
A20: Ingresos financieros - neto | B20: 29 | C20: ='Nota 29'!B13 -> 892619.783 | D20: ='Nota 29'!C13 -> 2167651.048
A21: Gastos financieros - neto | B21: 29 | C21: =-'Nota 29'!F13 -> -8360829.131 | D21: =-'Nota 29'!G13 -> -10364672.94
A22: Subtotal | C22: =SUM(C19:C21) -> -5130023.607 | D22: =SUM(D19:D21) -> -5090333.56
A23: Resultados Diversos | B23: 30 | C23: ='Nota 30'!B11 -> 148391.117 | D23: ='Nota 30'!C11 -> -15873.762
A24: Resultados ordinarios antes de impuesto a la renta y participación minoritaria | C24: =C22+C23 -> -4981632.49 | D24: =D22+D23 -> -5106207.322
A25: Resultado participación minoritaria | B25: 31 | C25: ='Nota 31'!B13 -> 0 | D25: ='Nota 31'!C13 -> 0
A26: Resultado ordinario antes del impuesto a la renta
A27: Impuesto a la renta | B27: 32 | C27: ='Nota 32'!B11 -> 0 | D27: ='Nota 32'!C11 -> 0
A28: Resultado neto de actividades ordinarias | C28: =C26+C27 -> 0 | D28: =D26+D27 -> 0
A29: Resultado extraordinario neto de impuesto a la renta | B29: 33 | C29: ='Nota 32'!B11 -> 0 | D29: ='Nota 32'!C11 -> 0
A30: Resultado sobre actividades discontinuadas neto de impuesto a la renta | B30: 34 | C30: ='Nota 34'!B12 -> 0 | D30: ='Nota 34'!C12 -> 0
A31: Utilidad/(Pérdida) neta del año | C31: =C28+C29+C30 -> 0 | D31: =D28+D29+D30 -> 0
A32: Utilidad neta por acción ordinaria | B32: 35 | C32: ='Nota 35'!B10 -> 0 | D32: ='Nota 35'!C10 -> 0
A35: Las notas que se acompañan forman parte integrante de estos estados.

Sheet EVPN
A1: =Indice!C1 -> PENNER AUTOMOTORES S.R.L. | H1: Indice
F4: ESTADO DE EVOLUCIÓN DEL PATRIMONIO NETO
H5: =IFERROR(IF(Indice!B6="","Al dia... de mes… de año 2XX2…","Al "&DAY(Indice!B6)&" de "&VLOOKUP(MONTH(Indice!B6),Indice!S:T,2,0)&" de "&YEAR(Indice!B6)),"Al dia... de mes… de año 2XX2…") -> Al 30 de Septiembre de 2021
A6: Comparativo con igual periodo del año anterior
A7: (En miles de guaraníes)
C10: Aporte de los propietarios | L10: Ganancias reservadas
C11: Capital suscripto e integrado | D11: Aporte para | F11: Primas de emisión | H11: Reserva de revalúo | J11: Reserva de revalúo técnico | L11: Reserva legal | N11: Reserva facultativa | P11: Resultados acumulados | R11: Resultado del Ejercicio | T11: Total
D12: aumento de capital | P12: Total
A14: Saldo al 31 de Diciembre 2019 | C14: 38500000 | H14: 2951187.748 | J14: 1014.632 | L14: 1274957.479 | N14: 0 | P14: 4439899.904 | R14: 425852.71 | T14: 47592912.47
A15: Cambio en política contable (Nota….)
A16: Saldo reestructurado | C16: 38500000 | F16: 0 | H16: 2951187.748 | J16: 1014.632 | L16: 1274957.479 | N16: 0 | P16: 4439899.904 | R16: 425852.71 | T16: 47592912.47
A17: Distribución de dividendos s/Acta de Asamblea Ordinaria N°… de fecha………
A18: Integración del capital social | T18: 0
A19: Reducción del capital social s/Acta de Asamblea General Ordinaria N°… de fecha……..
A20: Transferencia a Resultados Acumulados | P20: 425852.71 | R20: -425852.71
A21: Revalúo de activos fijos | H21: 397584.056 | T21: 397584.056
A22: Resultado del año | R22: -5106207.322 | T22: -5106207.322
A24: Saldo al 30 de Setiembre 2020 | C24: 38500000 | D24: 0 | F24: 0 | G24: 0 | H24: 3348771.804 | J24: 1014.632 | L24: 1274957.479 | N24: 0 | P24: 4865752.614 | R24: -5106207.322 | T24: 42884289.21
A26: Saldo al 31 de Diciembre 2020 | C26: 38500000 | H26: 2951187.75 | J26: 1014.632 | L26: 1274957.479 | N26: 0 | P26: 4865752.614 | R26: -9222955.99 | T26: 38369956.48
A27: Cambio en política contable (Nota….)
A28: Saldo reestructurado | C28: 38500000 | F28: 0 | H28: 2951187.75 | J28: 1014.632 | L28: 1274957.479 | N28: 0 | P28: 4865752.614 | R28: -9222955.99 | T28: 38369956.48
A29: Distribución de dividendos s/Acta de Asamblea Ordinaria N°… de fecha………
A30: Integración del capital social | T30: 0
A31: Reducción del capital social s/Acta de Asamblea General Ordinaria N°… de fecha……..
A32: Transferencia a Resultados Acumulados | P32: -9222955.99 | R32: 9222955.99
A33: Revalúo de activos fijos | H33: 0 | T33: 0
A34: Resultado del año | R34: -4981632.49 | T34: -4981632.49
A36: Saldo al 30 de Setiembre 2021 | C36: 38500000 | D36: 0 | F36: 0 | G36: 0 | H36: 2951187.75 | J36: 1014.632 | L36: 1274957.479 | N36: 0 | P36: -4357203.376 | R36: -4981632.49 | T36: 33388323.99
A39: Las notas que se acompañan forman parte integrante de estos estados.

Sheet EFE
A1: =Indice!C1 -> PENNER AUTOMOTORES S.R.L.
A5: ESTADO DE FLUJOS DE EFECTIVO (Método directo)
A6: =IFERROR(IF(Indice!B6="","Al dia... de mes… de año 2XX2…","Al "&DAY(Indice!B6)&" de "&VLOOKUP(MONTH(Indice!B6),Indice!S:T,2,0)&" de "&YEAR(Indice!B6)),"Al dia... de mes… de año 2XX2…") -> Al 30 de Septiembre de 2021
A7: Comparativo con igual periodo del año anterior
A8: (En miles de guaraníes)
B11: 2021-09-30 | C11: 2020-09-30
A13: FLUJO DE EFECTIVO DE ACTIVIDADES OPERATIVAS
A14: Cobranzas efectuadas a clientes | B14: 63549144.22 | C14: 52625364.23
A15: Pagos efectuados a proveedores y empleados | B15: -44693004.32 | C15: -40513071.26
A16: Efectivo generado por otras operaciones | B16: 3189902.159 | C16: 1144812.053
A17: Intereses pagados
A18: Otros ingresos y (egresos) - neto | B18: 1993591.24 | C18: 858919.064
A19: Pagos de impuesto a la renta | B19: -9550.591 | C19: -4225.225
A20: Flujo neto de efectivo de actividades operativas | B20: =SUM(B14:B19) -> 24030082.71 | C20: =SUM(C14:C19) -> 14111798.87
A22: FLUJO DE EFECTIVO DE ACTIVIDADES DE INVERSIÓN
A23: Adquisición de bienes Curtiembre - fideicomitida | B23: 0 | C23: 0
A24: Cobros (Adquisicion) de Inversiones temporales | B24: -7945101.414 | C24: 2058715.581
A25: Ventas (Compra) de bienes de uso | B25: 504062.194 | C25: -214376.73
A26: Venta (Adquisicion) de inversiones Inmuebles | B26: 589601.111 | C26: 0
A27: Flujo neto de efectivo de actividades de inversión | B27: =SUM(B23:B26) -> -6851438.109 | C27: =SUM(C23:C26) -> 1844338.851
A29: FLUJO DE EFECTIVO DE ACTIVIDADES DE FINANCIACIÓN
A30: (Disminución) Incremento de préstamos | B30: -8893347.253 | C30: -9483693.202
A31: Aportes de capital recibidos | B31: 0 | C31: 0
A32: Intereses Pagados | B32: -8401494.176 | C32: -10364672.94
A33: Flujo neto de efectivo de actividades de financiamiento | B33: =B30+B31+B32 -> -17294841.43 | C33: =C30+C31+C32 -> -19848366.14
A35: (Disminución) Incremento neto de efectivo | B35: -116196.824 | C35: -3892228.424
A36: Efecto estimado de la diferencia de cambio sobre el saldo de efectivo | B36: 40665.045 | C36: 966575.678
A37: Efectivo al principio del año | B37: 3013281.672 | C37: 5446049.951
A39: Efectivo al final del periodo | B39: =+SUM(B35:B37) -> 2937749.893 | C39: =+SUM(C35:C37) -> 2520397.205
A41: Las notas que se acompañan forman parte integrante de estos estados.

Sheet Nota1
A1: =Indice!C1 -> PENNER AUTOMOTORES S.R.L. | I1: BG
A4: NOTAS A LOS ESTADOS FINANCIEROS CORRESPONDIENTES AL PERIODO TERMINADO | H4: =IFERROR(IF(Indice!B6="","Al dia... de mes… de año 2XX2…","Al "&DAY(Indice!B6)&" de "&VLOOKUP(MONTH(Indice!B6),Indice!S:T,2,0)&" de "&YEAR(Indice!B6)),"Al dia... de mes… de año 2XX2…") -> Al 30 de Septiembre de 2021
A5: Presentadas en forma comparativa con el periodo terminado | F5: =IFERROR("Al "&DAY(Indice!B6)&" de "&VLOOKUP(MONTH(Indice!B6),Indice!S:T,2,0)&" de "&YEAR(Indice!B6-365),"Al dia... de mes… de año 2XX1…") -> Al 30 de Septiembre de 2020
A9: NOTA 1 – DESCRIPCIÓN DE LA NATURALEZA Y DEL NEGOCIO DE LA COMPAÑÍA
A10: La Sociedad fue constituida originalmente bajo la denominación de Pro – Chaco S.R.L., según consta en la Escritura Pública número 32, de Fecha 7 de agosto de 2001, de cuyo testimonio se tomó razón en la Dirección General de los Registros Públicos. Registro de Personas Jurídicas y Asociaciones, el 30 de agosto de 2001 y en el Registro Público de Comercio, también el 30 de agosto de 2001.
A12: Por escritura pública número 81, del 18 de setiembre de 2006, fue modificada la primera cláusula del contrato constitutivo, cambiándose la denominación de la firma a la de Penner Automotores Sociedad de Responsabilidad Limitada, de todo lo cual se tomó razón en la Dirección General de los Registros Públicos, en el Registro de Personas Jurídicas y Asociaciones, el 13 de noviembre de 2006.
A14: Según escritura pública Nº 103 de fecha 3 de marzo de 2016 de aumento de capital en Gs.13.131.000.000. (Reserva de revalúo 1.359.000.000, resultados acumulados 4.152.000.000, fondo de reserva 1.600.000.000 y resultados del ejercicio 6.018.000.000) y capital actual Gs. 25.369.000.000 quedando el mismo en Gs. 38.500.000.000 dividido en 38.500 cuotas por valor de Gs. 1.000.000.
A16: En fecha 3/4/2017 según escritura pública Nº174 se resolvió el ingreso de la firma al Mercado de Valores y su inscripción como emisora de obligaciones ante las autoridades de dicho mercado.
A18: Según escritura pública Nº 293 de fecha 18/5/2018 de aumento de capital en Gs.15.310.000.000 correspondiente al Revalúo Técnico y el capital actual Gs. 38.500.000.000. Quedando el mismo en Gs. 53.810.000.000 dividido en 53.810 cuotas por valor de Gs. 1.000.000.
A20: La última modificación fue en fecha 6/6/2018 según escritura pública N° 340 se resuelve realizar en parte proporcional a sus respectivas participaciones, un rescate de cuotas sociales equivalente a 15.310 cuotas sociales, cuyo valor nominal es de Gs.15.310.000.000, dicho monto será compensado con la deuda que la empresa Nordland S.A. tiene con la empresa Penner Automotores S.R.L. El nuevo capital de la sociedad será de Gs. 38.500.000.000 dividido en 38.500 cuotas por valor de Gs. 1.000.000.
A22: En fecha 20/11/2018 según escritura pública N° 464 se resuelve que el señor Orlando Penner y Ronald Durksen ceden, venden y transfieren parte de sus cuotas sociales a favor de la firma MF Inversiones S.A. 5.775 cuotas sociales de Gs. 1.000.000 cada un equivalente a Gs. 5.775.000.000 que constituye el 15% de las cuotas sociales de la Sociedad.
A24: En setiembre 2021, M.F. Inversiones S.A. vende y transfiere la totalidad de sus cuotas sociales a favor del Sr. Orlando Penner, modificandose asi la composicion accionaria: Orlando Penner 99%; Ronald Dürksen 1%. Este acto se encuentra en proceso en los registros correspondientes, segun escritura Nº 506 de fecha 25/10/2021.
A26: La entidad no posee partipaciones en otras empresas.

Sheet Nota 2
A1: =Indice!C1 -> PENNER AUTOMOTORES S.R.L.
A5: NOTA 2 - RESUMEN DE LAS PRINCIPALES POLÍTICAS CONTABLES
A7: 2.1 Bases de preparación de los estados financieros
A9: Los presentes estados financieros han sido formulados de acuerdo con los lineamientos generales de las normas contables emitidas por la Comisión Nacional de Valores y Normas de Información Financiera emitidas por el Consejo de Contadores Públicos del Paraguay, en cuanto a las prácticas contables usuales y el plan de cuentas establecido acorde con el funcionamiento de la Entidad.
A11: Algunas cifras correspondientes al año terminado el 31 de diciembre de 2020 fueron reclasificadas en los presentes estados financieros con el fin de hacerlas comparables con las del periodo actual y facilitar su comparación.
A13: A continuación se resumen las políticas de contabilidad más significativas aplicadas por la Sociedad:
A15: a. Bases de contabilización
A17: Los estados financieros se expresan en guaraníes y han sido preparados siguiendo los criterios de las normas de información financiera vigentes en Paraguay sobre la base de costos históricos (excepto por el revalúo de los bienes de uso hasta el ejercicio finalizado el 31 de diciembre de 2019 y por el tratamiento asignado a los activos y pasivos monetarios en moneda extranjera, tal como se expone en los puntos a y c de esta nota en su apartado 3.2) y no reconocen en forma integral los efectos de la inflación sobre la situación patrimonial de la empresa, en los resultados de las operaciones y en sus flujos de efectivo en atención a que la corrección monetaria no constituye una práctica contable aplicada en Paraguay.
A19: Según el índice general de precios al consumidor publicado por el Banco Central del Paraguay, la inflación correspondiente al período finalizado el 31 de diciembre de 2020 fue 2,2% y la correspondiente al ejercicio finalizado el 31 de diciembre de 2019 fue 2,8%. A setiembre 2021 la inflacion es de 4,6%
A21: b. Uso de estimaciones
A23: La preparación de los presentes estados financieros requiere que la Gerencia y el Directorio de la Sociedad realicen estimaciones y evaluaciones que afectan el monto de los activos y pasivos registrados y contingentes a la fecha de cierre, como así también los ingresos y egresos registrados en el periodo. Los resultados reales futuros pueden diferir de las estimaciones y evaluaciones realizadas a la fecha de preparación de los presentes estados financieros.
A25: El efecto en los estados financieros de las modificaciones que, en su caso, se derivasen de los ajustes a efectuar durante los próximos años, es reconocido en el año en que la estimación es modificada y en los años futuros afectados, o sea, se registra en forma prospectiva. Las áreas más significativas en las que la Dirección de la Sociedad ha realizado estimaciones de incertidumbre y juicios críticos en la aplicación de políticas contables y que tienen un mayor efecto sobre el importe reconocido en los estados financieros conciernen las previsiones para deudores incobrables, los valores residuales y las depreciaciones de los bienes de uso y el cargo por impuesto a la renta.
A27: c. Información comparativa
A29: Los estados financieros al 30 de setiembre de 2021 y la información complementaria, se presentan en forma comparativa con los respectivos estados e información complementaria de acuerdo a lo expuesto en la nota 2.1.
A32: 2.2 Criterios de valuación
A34: a. Moneda extranjera
A36: Las diferencias de cambio originadas por fluctuaciones en los tipos de cambio producidos entre las fechas de concertación de las operaciones y su liquidación o valuación al cierre del ejercicio, son reconocidas en resultados en el período en que ocurren.
A38: b. Inversiones
A40: Las inversiones están valuadas a su costo menos cualquier pérdida por deterioro y a valor tasación según informe realizado en el mes de noviembre del 2017 por el Ing. Rafael Sapienza Ávila.
A42: c. Bienes de uso
A44: Los bienes de uso están valuados a su costo revaluado hasta el 31 de diciembre de 2019, de acuerdo con las disposiciones de la Ley 125/91, utilizando los coeficientes que reflejan la inflación en el país. A partir del 1 de enero de 2020, se discontinua el ajuste parcial de los mismos.
A46: El poder ejecutivo podrá establecer el revalúo obligatorio de los bienes del activo fijo, cuando la variación del Índice de Precios al Consumo determinado por el Banco Central del Paraguay alcance al menos 20% acumulado desde el ejercicio en el cual se haya dispuesto el último ajuste por revalúo. El incremento neto en el valor de los bienes tiene como contrapartida una reserva especial que forma parte del Patrimonio Neto cuyo único destino podrá ser la capitalización.
A48: Al valor de costo revaluado se computan las depreciaciones acumuladas, tal como se explica en el apartado 2.4.a. de esta nota.
A50: Los gastos de mantenimiento son cargados a resultados. El valor residual de los bienes de uso, considerados en su conjunto, no excede su valor recuperable al cierre del ejercicio.
A52: 2.3 Política de constitución de previsiones
A54: Las previsiones para incobrables son estimadas y constituidas en base al análisis individual de los deudores, realizado por la gerencia de la Sociedad sobre el total de sus cuentas por cobrar judicializadas
A57: 2.4 Política de Depreciaciones y Amortizaciones
A59: a. Bienes de uso
A61: Los bienes de uso son depreciados utilizando el método lineal a partir del mes siguiente de su incorporación al patrimonio de la sociedad de acuerdo con las siguientes vidas útiles:
A63: Tipo de bien | C63: Vida útil (años) (*)
A64: Edificios | C64: 30
A65: Equipos de informática | C65: 2
A66: Muebles y útiles | C66: 5
A67: Máquinas y equipos | C67: 5
A68: Mejoras en predio ajeno | C68: 5
A69: Rodados | C69: 5
A70: Instalaciones | C70: 10
A72: b. Cargos diferidos y Activos Intangibles
A74: Los cargos diferidos y activos intangibles son amortizados utilizando el método lineal a partir del mes siguiente de su incorporación al patrimonio de la sociedad.
A76: Los años de amortización son los siguientes:
A78: Tipo de bien | C78: Años de amortización (*)
A79: Licencias | C79: 5
A80: Registro de marca | C80: 4
A82: (*) Años de vida útil aplicables para los bienes incorporados a partir del 1 de enero de 2020
A84: 2.5 Política de reconocimiento de ingresos
A86: a. Intereses sobre títulos y otros valores
A88: Los intereses generados son reconocidos como ingresos conforme se devengan.
A90: b. Venta de títulos
A92: Se reconoce como ingreso la diferencia de precio entre el valor de venta de un activo propio y el valor de adquisición.
A94: 2.6 Estado de flujo de efectivo
A96: Para la preparación del estado de flujos de efectivo se consideraron dentro del concepto de efectivo y equivalentes a los saldos en efectivo, disponibilidades en cuentas bancarias y, en caso de existir, las inversiones temporales asimilables a efectivo (de alta liquidez y con vencimiento originalmente pactado por un plazo menor a tres meses). Se utiliza el método directo para la preparación del mismo.
A98: 2.7 Normas aplicadas para la consolidación de estados financieros
A100: No aplicable. Los presentes Estados Financieros no incluyen información consolidada.
A102: Cambio de políticas y procedimientos de contabilidad
A104: Las políticas y procedimientos aplicados para la preparación de los presentes estados financieros, no presentan cambios respecto a los utilizados en el ejercicio anterior.
A106: Criterios específicos de valuación
A108: a. Valuación de la moneda extranjera
A110: Las transacciones en moneda extranjera son convertidas al Guaraní a la cotización vigente en la fecha de la transacción. Los activos y pasivos monetarios denominados en moneda extranjera son convertidos al Guaraní a la cotización vigente a la fecha de cierre de los estados financieros. Las diferencias de cambio resultantes figuran presentadas en el Estado de Resultados
A113: El siguiente es el detalle de las principales cotizaciones de las monedas extranjeras operadas por la Sociedad a la fecha de balance:
C115: Promedio
C116: 2021-09-01 | D116: 2020-09-01
B117: Dólar estadounidense | C117: 6913.99 | D117: 6990.24
A120: b. Posición en moneda extranjera
A122: DETALLE | B122: Moneda Extranjera | D122: Cambio Vigente | E122: Moneda Local
B123: Clase | C123: Monto | E123: 2021-09-30 | F123: 2020-09-30
A124: ACTIVOS CORRIENTES
A125: Cajas | B125: Dólar | C125: 4071.531778 | D125: 6913.99 | E125: 28150.53 | F125: 284368.742
A126: Bancos | B126: Dólar | C126: 72008.25992 | D126: 6913.99 | E126: 497864.389 | F126: 179642.389
A127: Deudores por Venta | B127: Dólar | C127: 1532522.89 | D127: 6913.99 | E127: 10595847.94 | F127: 13839970.93
A128: Adelanto a Proveedores | B128: Dólar | C128: 26611.13 | D128: 6913.99 | E128: 183989.0867 | F128: 129814.7684
A129: SUBTOTALES | C129: =SUM(C125:C128) -> 1635213.812 | E129: =SUM(E125:E128) -> 11305851.94 | F129: =SUM(F125:F128) -> 14433796.83
A130: ACTIVOS NO CORRIENTES
A131: Deudores por Venta | B131: Dólar | C131: 791338.7 | D131: 6913.99 | E131: 5471307.858 | F131: 8135624.936
A132: Creditos en Gestion de Cobro | B132: Dólar | C132: 632426.1 | D132: 6913.99 | E132: 4372587.731 | F132: 4188720.273
A133: SUBTOTALES | C133: =SUM(C131:C132) -> 1423764.8 | E133: =SUM(E131:E132) -> 9843895.59 | F133: =SUM(F131:F132) -> 12324345.21
A134: TOTALES | C134: =SUM(C133+C129) -> 3058978.612 | E134: =SUM(E133+E129) -> 21149747.53 | F134: =SUM(F133+F129) -> 26758142.04
A135: PASIVOS CORRIENTES
A136: Proveedores | B136: Dólar | C136: 794628.3 | D136: 6913.99 | E136: 5494052.12 | F136: 6372086.226
A137: Deudas Financieras | B137: Dólar | C137: 564085.04 | D137: 6913.99 | E137: 3900078.326 | F137: 7812105.025
A138: Prestamos de terceros | B138: Dólar | C138: 243372.28 | D138: 6913.99 | E138: 1682673.51 | F138: 2073010.348
A139: SUBTOTALES | C139: =SUM(C136:C138) -> 1602085.62 | E139: =SUM(E136:E138) -> 11076803.96 | F139: =F137+F138+F136 -> 16257201.6
A140: PASIVOS NO CORRIENTES
A141: Proveedores | B141: Dólar | C141: 0 | D141: 6913.99 | E141: 0 | F141: 0
A142: Deudas Financieras | B142: Dólar | C142: 297117.33 | D142: 6913.99 | E142: 2054266.248 | F142: 1677357.02
A143: Prestamos de terceros | B143: Dólar | C143: 130323.64 | D143: 6913.99 | E143: 901056.3437 | F143: 0
A144: SUBTOTALES | C144: =+C141+C142+C143 -> 427440.97 | E144: =+E141+E142+E143 -> 2955322.592 | F144: =+F141+F142+F143 -> 1677357.02
A145: TOTALES | C145: =SUM(C144+C139) -> 2029526.59 | E145: =SUM(E144+E139) -> 14032126.55 | F145: =SUM(F144+F139) -> 17934558.62
A147: POSICION NETA | C147: =+C134-C145 -> 1029452.022 | E147: =+E134-E145 -> 7117620.983 | F147: =+F134-F145 -> 8823583.422

Sheet Nota 3
A1: =Indice!C1 -> PENNER AUTOMOTORES S.R.L. | E1: BG
A4: NOTA 3 - EFECTIVO Y EQUIVALENTE DE EFECTIVO
A5: En miles de guaranies
A6: La composición de la cuenta es la siguiente:
A8: Concepto | C8: 2021-09-30 | D8: 2020-12-31
A10: Caja Efectivo | C10: 654436.15 | D10: 940927.653
A11: Cooperativa Fernheim Ltda.. | C11: 624867.299 | D11: 230508.009
A12: Banco Regional S.A… | C12: 443544.04 | D12: 27672.824
A13: Itau S.A.. | C13: 346557.559 | D13: 288969.106
A14: BBVA Banco. | C14: 154842.095 | D14: 243282.445
A15: Banco Sudameris S.A. | C15: 133991.809 | D15: 104586.699
A16: Banco Atlas S.A. | C16: 109650.389 | D16: 292255.764
A17: Cooperativa Chortitzer Ltda. | C17: 99601.311 | D17: 52703.032
A18: Bancop S.A. | C18: 89441.602 | D18: 34597.339
A19: Banco GNB S.A… | C19: 52752.519 | D19: 106338.28
A20: Visión Banco S.A. | C20: 28709.619 | D20: 400576.408
A21: Cooperativa Neuland Ltda. | C21: 27623 | D21: 96404.398
A22: Financiera El Comercio S.A.E.C.A. | C22: 26711.913 | D22: 29876.934
A23: Otros Bancos | C23: 145020.588 | D23: 164582.781
A24: Total | C24: =SUM($C$10:C23) -> 2937749.893 | D24: =SUM($D$10:D23) -> 3013281.672

Sheet Nota 4
A1: =Indice!C1 -> PENNER AUTOMOTORES S.R.L. | D1: BG
A4: NOTA 4 - INVERSIONES TEMPORALES
A6: La composición de la cuenta es la siguiente:
B7: En miles de guaranies
A8: Concepto | B8: 2021-09-30 | C8: 2020-12-31
A9: Inversiones en Titulos del Sistema Financiero Local - Moneda Local Guaraníes
A10: Inversiones en Titulos del Sistema Financiero Local - Moneda Extranjera Dólares
A11: Inversiones en Titulos del Sistema Financiero Local - Moneda Extranjera otros
A12: Inversiones en Mercado Bursatil Local - Moneda Local Guaraníes
A13: Inversiones en Mercado Bursatil Local - Moneda Extranjera Dólares
A14: Inversiones en Mercado Bursatil Extranjera - Moneda Extranjera Dólares
A15: Inversiones en Mercado Bursatil Extranjera - Moneda Extranjera otros
A16: Otras inversiones - Moneda Local Guaraníes
A17: Otras inversiones - Moneda Extranjera Dólares
A18: Total | B18: =SUM($B$9:B17) -> 0 | C18: =SUM($C$9:C17) -> 0

Sheet Nota 5
A1: =Indice!C1 -> PENNER AUTOMOTORES S.R.L. | F1: BG
A2: La composición de la cuenta es la siguiente:
A4: NOTA 5 – CUENTAS POR COBRAR COMERCIALES
A5: Las cuentas a cobrar comerciales a corto plazo se integran como sigue:
C6: En miles de guaraníes
C7: 2021-09-30 | D7: 2020-12-31 | F7: Composición de la cartera de créditos por ventas | G7: =+C7 -> 2021-09-30
A8: Deudores por ventas locales | B8: Moneda Local Guaraníes | C8: 24048784.96 | D8: 27770478.35 | F8: Situación | G8: Monto | H8: % Previsiones sobre Cartera
A9: Menos: Intereses a vencer s/ créditos | B9: Moneda Local Guaraníes | C9: -1084809.385 | D9: -1257344.817 | F9: A Total Cartera no Vencida | G9: 36244530.46 | H9: 0
A10: Menos: Previsión para deudores incobrables | B10: Moneda Local Guaraníes | C10: -281776.618 | D10: -281776.618 | F10: B. Total Cartera Vencida | G10: 11461371.96 | H10: 0.2347327792
A11: Total | C11: =+SUM($C$8:C10) -> 22682198.96 | D11: =+SUM($D$8:D10) -> 26231356.91 | F11: Composición Cartera Vencida
F12: Normal | G12: 433016.484 | H12: 0.006728931072 | I12: =+G12/(G12+G13) -> 0.1016887194
F13: En Gestión de Cobro | G13: 3825238.378 | H13: 0.05944292269 | I13: =+G13/(G12+G13) -> 0.8983112806
A14: Las cuentas a cobrar comerciales a largo plazo se integran como sigue: | F14: En Gestión de Cobro Judicial | G14: 7203117.1 | H14: 0.3343806636
C15: En miles de guaraníes
C16: =+C7 -> 2021-09-30 | D16: 2020-12-31 | F16: Total de la cartera de créditos (A+B) | G16: =G9+G10 -> 47705902.42
A17: Deudores por ventas locales. | B17: Moneda Local Guaraníes | C17: 16454000.35 | D17: 23756084.73
A18: Menos: Intereses a vencer s/ créditos. | B18: Moneda Local Guaraníes | C18: 1791279.999 | D18: 320356.055 | F18: (-) Total Previsiones | G18: =+C10+C20 -> -2690359.694
A19: Créditos judiciales. | B19: Moneda Local Guaraníes | C19: 7203117.1 | D19: 7550747.119
A20: Menos: Previsión para deudores incobrables. | B20: Moneda Local Guaraníes | C20: -2408583.076 | D20: -2408583.076 | F20: TOTAL NETO DE LA CARTERA DE CRÉDITOS | G20: =G16+G18 -> 45015542.72
A21: Total | C21: =+SUM($C$17:C20) -> 23039814.38 | D21: =+SUM($D$17:D20) -> 29218604.83
F22: Observaciones
F23: Criterios de Clasificación utilizados
F24: Normal | G24: mas de 30 días
F25: En Gestión de Cobro | G25: mas de 60 días
F26: En Gestión de Cobro Judicial | G26: Cartera Judicializada

Sheet Nota 6
A1: =Indice!C1 -> PENNER AUTOMOTORES S.R.L. | D1: BG
A4: NOTA 6 - OTROS CRÉDITOS
A5: En miles de guaranies
A6: El rubro de otros créditos se compone como sigue:
A8: Corrientes | E8: No corrientes
A10: Concepto | B10: 2021-09-30 | C10: 2020-12-31 | E10: Concepto | F10: =+B10 -> 2021-09-30 | G10: 2020-12-31
A11: Créditos fiscales | B11: 153917.602 | C11: 846647.364 | E11: Honorarios a vencer. | F11: 18214.228 | G11: 37499.979
A12: Gastos a recuperar de clientes | B12: 483373.602 | C12: 986875.444 | E12: Documentos a cobrar. | F12: 5392269.732 | G12: 8303441.048
A13: Anticipos al personal | B13: 372453.923 | C13: 164755.057
A14: Gastos a devengar | B14: 935805.496 | C14: 1575221.545
A15: Deudores varios | B15: 2438371.157 | C15: 2415011.704
A16: Documentos a cobrar | B16: 4866466.181 | C16: 3927133.047
A17: Prestamos a personas vinculadas | B17: 7945101.414 | C17: 0
A18: Total | B18: =SUM($B$11:B17) -> 17195489.38 | C18: =SUM($C$11:C17) -> 9915644.161 | E18: Total | F18: =SUM(F11:F16) -> 5410483.96 | G18: =SUM(G11:G16) -> 8340941.027

Sheet Nota 7
A1: =Indice!C1 -> PENNER AUTOMOTORES S.R.L. | D1: BG
A4: NOTA 7 – INVENTARIOS
A6: Los bienes de cambio están compuestos de la siguiente manera:
B7: En miles de guaranies
A8: Concepto | B8: 2021-09-30 | C8: 2020-12-31
A9: Vehículos | B9: 5911303.101 | C9: 14015571.99
A10: Costo incorp. veh. en existencia | B10: 378874.996 | C10: 546469.203
A11: Anticipo a proveedores | B11: 213003.61 | C11: 2799289.443
A12: Repuestos para la venta | B12: 1375428.377 | C12: 1583893.232
A13: Ordenes de trabajo en proceso | B13: 43226.475 | C13: 69471.476
A14: Total | B14: =SUM(B9:B13) -> 7921836.559 | C14: =SUM(C9:C13) -> 19014695.35

Sheet Nota 8
A1: =Indice!C1 -> PENNER AUTOMOTORES S.R.L. | D1: BG
A4: Nota 8 - INVERSIONES EN ASOCIADAS
A5: En miles de guaraníes
A6: Las inversiones en sociedades donde no se ejerce control se describen a continuación
A7: Periodo | B7: 2021-09-30 | C7: 2020-12-31
A8: Total Inversión | B8: =SUM($I$13:I18) -> 0 | C8: 0 | D8: <-- Indicar Monto
A10: a) Datos sobre la sociedad: | G10: a) Datos sobre la inversión:
D11: =IFERROR(IF(Indice!B6="","2XX2",YEAR(Indice!B6)),"2XX2") -> 2021
A12: Nombre de Sociedad | B12: RUC | C12: Cantidad de acciones | D12: Total Patrimonio neto | E12: Total del resultado | G12: Cantidad de acciones | H12: Participación sobre los votos (%) | I12: Total Inversión (miles de Gs) | J12: Participación sobre el Patrimonio Neto (%) | K12: Total valuación patrimonial proporcional | L12: Resultado sobre inversiones
K13: =J13*D13 -> 0 | L13: =J13*E13 -> 0
K14: =J14*D14 -> 0 | L14: =J14*E14 -> 0
K15: 0 | L15: 0
K16: 0 | L16: 0
K17: 0 | L17: 0
K18: 0 | L18: 0

Sheet Nota 9
A1: =Indice!C1 -> PENNER AUTOMOTORES S.R.L. | L1: BG
A3: NOTA 9 - PROPIEDADES, PLANTA Y EQUIPO - NETO
A4: En miles de guaraníes | J4: -1
B6: Costo histórico revaluado al inicio del año | C6: Adquisiciones | D6: Bajas | E6: Revalúo del año | F6: Valor al cierre del periodo | G6: Depreciación acumulada al inicio del año | H6: Depreciación del año | I6: Bajas de depreciaciones acumuladas | J6: Revalúo depreciación acumulada del año | K6: Depreciación acumulada revaluada al final del periodo | L6: Valor neto contable
L7: =IFERROR(IF(Indice!B6="","2XX2",YEAR(Indice!B6)),"2XX2") -> 2021 | M7: =IFERROR(YEAR(Indice!B6-365),"2XX1") -> 2020
A8: Bienes en Fideicomiso (*) | B8: 28113750.43 | C8: 0 | D8: 0 | E8: 0 | F8: =+B8+C8-D8+E8 -> 28113750.43 | G8: =602654511/1000 -> 602654.511 | H8: 132327.675 | I8: 0 | J8: 0 | K8: =+G8+H8+I8+J8 -> 734982.186 | L8: =+F8-K8 -> 27378768.24 | M8: =27511095919/1000 -> 27511095.92
A9: Edificaciones | B9: 883840.439 | C9: 0 | D9: 0 | E9: 0 | F9: =+B9+C9-D9+E9 -> 883840.439 | G9: =494257947/1000 -> 494257.947 | H9: 6968.943 | I9: 0 | J9: 0 | K9: =+G9+H9+I9+J9 -> 501226.89 | L9: =+F9-K9 -> 382613.549 | M9: =389582492/1000 -> 389582.492
A10: Rodados | B10: 2668695.106 | C10: 0 | D10: 558089.059 | E10: 0 | F10: 2110606.047 | G10: =1249345186/1000 -> 1249345.186 | H10: 184045.607 | I10: 0 | J10: 0 | K10: 1433390.793 | L10: =+F10-K10 -> 677215.254 | M10: =1419349920/1000 -> 1419349.92
A11: Muebles y Equipos de Oficina | B11: 1164822.612 | C11: 17317.728 | D11: 0 | E11: 0 | F11: 1182140.34 | G11: =738255583/1000 -> 738255.583 | H11: 52674.939 | I11: 0 | J11: 0 | K11: 790930.522 | L11: 391209.818 | M11: =426567029/1000 -> 426567.029
A12: Instalaciones | B12: 358251.794 | C12: 954.545 | D12: 0 | E12: 0 | F12: 359206.339 | G12: =164884564/1000 -> 164884.564 | H12: 18751.338 | I12: 0 | J12: 0 | K12: 183635.902 | L12: 175570.437 | M12: =193367230/1000 -> 193367.23
A13: Maquinarias | B13: 112417.379 | C13: 12268.182 | D13: 0 | E13: 0 | F13: 124685.561 | G13: =26133818/1000 -> 26133.818 | H13: 6767.928 | I13: 0 | J13: 0 | K13: 32901.746 | L13: 91783.815 | M13: =86283561/1000 -> 86283.561
A14: Edificaciones en Predio Ajeno | B14: 526769.868 | C14: 0 | D14: 0 | E14: 0 | F14: 526769.868 | G14: =466724121/1000 -> 466724.121 | H14: 17498.565 | I14: 0 | J14: 0 | K14: 484222.686 | L14: 42547.182 | M14: =60045747/1000 -> 60045.747
A15: Herramientas y Enseres | B15: 788130.877 | C15: 13634.572 | D15: 0 | E15: 0 | F15: 801765.449 | G15: =462308246/1000 -> 462308.246 | H15: 90916.83 | I15: 0 | J15: 0 | K15: 553225.076 | L15: 248540.373 | M15: =325822631/1000 -> 325822.631
A16: Equipos de Informatica | B16: 322216.551 | C16: 7061.636 | D16: 0 | E16: 0 | F16: 329278.187 | G16: =229675444/1000 -> 229675.444 | H16: 26601.768 | I16: 0 | J16: 0 | K16: 256277.212 | L16: 73000.975 | M16: =92541107/1000 -> 92541.107
A17: Totales | B17: =SUM(B8:B16) -> 34938895.06 | C17: =SUM(C8:C16) -> 51236.663 | D17: 558089.059 | E17: 0 | F17: 34432042.66 | G17: 4434239.42 | H17: 536553.593 | I17: 0 | J17: 0 | K17: 4970793.013 | L17: =SUM($L$8:L16) -> 29461249.65 | M17: =SUM($M$8:M16) -> 30504655.64
A19: (*) Posee bienes en Fideicomiso con Banco Rio como Fiduciaria y Banco Continental como Beneficiario a 20 años.
A20: Los inmuebles en fideicomiso son las siguientes las cuales están ubicadas en el Distrito de Santísima Trinidad:
A22: Primer inmueble: Finca N° 83, Cta. Ctral. 15-0211-14
A23: Segundo inmueble: Finca N° 13287, Cta. Ctral. 15-1221-06
A24: Tercer inmueble: Finca N° 13288, Cta. Ctral. 15-1221-04
A25: Cuarto inmueble: Finca N° 13288, Cta. Ctral. 15-1221-03 E31
A26: Quinto inmueble: Finca N° 13288, Cta. Ctral. 15-1221-05.
A27: Sexto inmueble: Finca N° 13978, Cta. Ctral. 15-1221-02.
A28: Séptimo inmueble: Finca N° 15689, Cta. Ctral. 15-1222-04.

Sheet Nota 10
A1: =Indice!C1 -> PENNER AUTOMOTORES S.R.L. | C1: BG
A4: NOTA 10 – ACTIVOS DISPONIBLES PARA LA VENTA
B5: En miles de guaranies
B6: 2021-06-30 | C6: 2020-12-31
A7: Propiedad, planta y equipo
A9: Total | B9: =B8 -> 0 | C9: =C8 -> 0
A11: Activos intangibles
A13: Total | B13: =B12 -> 0 | C13: =C12 -> 0
A15: Inversiones
A17: Total | B17: =B16 -> 0 | C17: =C16 -> 0
A19: Total general | B19: =B9+B13+B17 -> 0 | C19: =C9+C13+C17 -> 0
A21: NOTA 10 - INVERSIONES INMOBILIARIAS
A23: Inmuebles y edificios que están destinados a la obtención de Renta.
B25: En miles de guaraníes
A26: Cuentas | B26: 2021-09-30 | C26: 2020-12-31
A27: 31/12/2011 Inmueble Loma Plata(Showroom) | B27: 5553046.645 | C27: 5553046.645
A28: 31/12/2013 Inmueble Hindenburg Filadelfia | B28: 3303801.173 | C28: 3303801.173
A29: 30/11/2017 Inmueble Complejo Boreal | B29: 4365152.331 | C29: 4954753.442
A30: Total | B30: =SUM(B27:B29) -> 13222000.15 | C30: =SUM(C27:C29) -> 13811601.26

Sheet Nota 11
A1: =Indice!C1 -> PENNER AUTOMOTORES S.R.L. | F1: BG
A4: NOTA 11 – ACTIVOS INTANGIBLES
B5: En miles de guaranies
A6: Activos intangibles | B6: 2021-09-30 | C6: 2020-12-31
A7: Software Informàtico | B7: 367911.377 | C7: 354810.306
A8: Registro de Marcas | B8: 7790.909 | C8: 7790.909
A9: Menos amortización acumulada | B9: -327266.837 | C9: -292412.708
A10: Total general | B10: =SUM(B7:B9) -> 48435.449 | C10: =SUM(C7:C9) -> 70188.507

Sheet Nota 12
A1: =Indice!C1 -> PENNER AUTOMOTORES S.R.L. | E1: BG
A5: NOTA 12 – GOODWILL
B6: En miles de guaranies
A7: Goodwill | B7: 2021-03-31 | C7: 2020-12-31
A11: Total general | B11: =SUM(B8:B10) -> 0 | C11: =SUM(C8:C10) -> 0

Sheet Nota 13
A1: =Indice!C1 -> PENNER AUTOMOTORES S.R.L. | C1: BG
A4: NOTA 13 – CUENTAS POR PAGAR COMERCIALES
A6: Las cuentas por pagar comerciales se componen como sigue:
D7: En miles de guaranies
A8: Corrientes | B8: Simbología según ISO 4217 | C8: Indicación de Moneda | D8: 2021-09-30 | E8: 2020-12-31
A9: Diesa S.A. | B9: PYG | C9: =IFERROR(VLOOKUP(B9,'Base de Monedas'!A:B,2,0),"") -> Guaraní | D9: 248061.375 | E9: 188310.671
A10: Diesa S.A. | B10: USD | C10: =IFERROR(VLOOKUP(B10,'Base de Monedas'!A:B,2,0),"") -> Dólar estadounidense | D10: 5414966.445 | E10: 10566491.54
A11: Otros proveedores locales | B11: PYG | C11: =IFERROR(VLOOKUP(B11,'Base de Monedas'!A:B,2,0),"") -> Guaraní | D11: 937961.6117 | E11: 545417.5275
A12: Anticipos de clientes | B12: PYG | C12: =IFERROR(VLOOKUP(B12,'Base de Monedas'!A:B,2,0),"") -> Guaraní | D12: 236314.761 | E12: 579009.7
A13: Total cuentas a pagar por comerciales | D13: =SUM($D$9:D12) -> 6837304.193 | E13: =SUM($E$9:E12) -> 11879229.44
A17: No Corrientes | B17: Simbología según ISO 4217 | C17: Indicación de Moneda | D17: =+D8 -> 2021-09-30 | E17: 2020-12-31
A18: Proveedores - Entidades Relacionadas
A19: Otros proveedores del exterior
A20: Proveedores locales | C20: =IFERROR(VLOOKUP(B20,'Base de Monedas'!A:B,2,0),"") -> 
A21: Total cuentas a pagar por comerciales | D21: =SUM($D$18:D20) -> 0 | E21: =SUM($E$18:E20) -> 0

Sheet Nota 14
A1: =Indice!C1 -> PENNER AUTOMOTORES S.R.L. | E1: BG | L1: BG
A4: NOTA 14 – PRESTAMOS A CORTO Y LARGO PLAZO
A7: Corrientes
B8: 2021-09-30 | H8: 2020-12-31
A9: Deudas Financieras | B9: Vencimiento | C9: Símbolo de Moneda | D9: Moneda | E9: Importe (miles de Gs) | F9: Tipo de Garantía | H9: Vencimiento | I9: Símbolo de Moneda | J9: Moneda | K9: Importe (miles de Gs) | L9: Tipo de Garantía
A10: Financiera El Comercio | B10: S/tipo de Negociación | C10: PYG | D10: =IFERROR(VLOOKUP(C10,'Base de Monedas'!A:B,2,0),"") -> Guaraní | E10: 2816573.724 | F10: A sola firma | H10: S/tipo de Negociación | I10: PYG | J10: Guaraní | K10: 2115269.721 | L10: A sola firma
A11: Financiera El Comercio | B11: S/tipo de Negociación | C11: USD | E11: 2241018.027 | F11: A sola firma | H11: S/tipo de Negociación | I11: USD | K11: 5903966.413 | L11: A sola firma
A12: Banco Regional S.A. | B12: S/tipo de Negociación | C12: PYG | D12: =IFERROR(VLOOKUP(C12,'Base de Monedas'!A:B,2,0),"") -> Guaraní | E12: 3971987.927 | F12: A sola firma | H12: S/tipo de Negociación | I12: PYG | J12: Guaraní | K12: 4489784.374 | L12: A sola firma
A13: Financiera Pyo Japonesa | B13: S/tipo de Negociación | C13: USD | D13: =IFERROR(VLOOKUP(C13,'Base de Monedas'!A:B,2,0),"") -> Dólar estadounidense | E13: 1659060.298 | F13: A sola firma | H13: S/tipo de Negociación | I13: PYG | J13: Guaraní | K13: 1861583.93 | L13: A sola firma
A14: Banco GNB S.A | B14: S/tipo de Negociación | C14: PYG | D14: =IFERROR(VLOOKUP(C14,'Base de Monedas'!A:B,2,0),"") -> Guaraní | E14: 1552936.384 | F14: A sola firma | H14: S/tipo de Negociación | I14: PYG | J14: Guaraní | K14: 1071782.34 | L14: A sola firma
A15: Bancop S.A | B15: S/tipo de Negociación | C15: PYG | D15: =IFERROR(VLOOKUP(C15,'Base de Monedas'!A:B,2,0),"") -> Guaraní | E15: 1345988.748 | F15: A sola firma | H15: S/tipo de Negociación | I15: PYG | J15: Guaraní | K15: 1472928.347 | L15: A sola firma
A16: Visión Banco S.A | B16: S/tipo de Negociación | C16: PYG | D16: =IFERROR(VLOOKUP(C16,'Base de Monedas'!A:B,2,0),"") -> Guaraní | E16: 2076102.948 | F16: A sola firma | H16: S/tipo de Negociación | I16: PYG | J16: Guaraní | K16: 692034.316 | L16: A sola firma
A17: Banco Rio S.A | B17: S/tipo de Negociación | C17: PYG | D17: =IFERROR(VLOOKUP(C17,'Base de Monedas'!A:B,2,0),"") -> Guaraní | E17: 1108194 | F17: A sola firma | H17: S/tipo de Negociación | I17: PYG | J17: Guaraní | K17: 1108194 | L17: A sola firma
A18: Banco Continental S.A.E.C.A. | B18: S/tipo de Negociación | C18: PYG | D18: =IFERROR(VLOOKUP(C18,'Base de Monedas'!A:B,2,0),"") -> Guaraní | E18: 260363.406 | F18: A sola firma | H18: S/tipo de Negociación | I18: PYG | J18: Guaraní | K18: 932516.8 | L18: A sola firma
A19: Banco BASA S.A. | B19: S/tipo de Negociación | C19: PYG | D19: =IFERROR(VLOOKUP(C19,'Base de Monedas'!A:B,2,0),"") -> Guaraní | E19: 241786.575 | F19: A sola firma | H19: S/tipo de Negociación | I19: PYG | J19: Guaraní | K19: 405990.726 | L19: A sola firma
A20: Interfisa Banco SAECA | B20: S/tipo de Negociación | C20: PYG | D20: =IFERROR(VLOOKUP(C20,'Base de Monedas'!A:B,2,0),"") -> Guaraní | E20: 137196.335 | F20: A sola firma | H20: S/tipo de Negociación | I20: USD | J20: Dólar estadounidense | K20: 542655.335 | L20: A sola firma
A21: Banco Atlas S.A | B21: S/tipo de Negociación | C21: PYG | D21: =IFERROR(VLOOKUP(C21,'Base de Monedas'!A:B,2,0),"") -> Guaraní | E21: 63510.124 | F21: A sola firma | H21: S/tipo de Negociación | I21: PYG | J21: Guaraní | K21: 350569.509 | L21: A sola firma
A22: Préstamos de terceros | B22: S/tipo de Negociación | C22: PYG | E22: 12790698.63 | F22: A sola firma | H22: S/tipo de Negociación | I22: PYG | K22: 6841650.873 | L22: A sola firma
A23: Préstamos de terceros | B23: S/tipo de Negociación | C23: USD | E23: 1682673.51 | F23: A sola firma | H23: S/tipo de Negociación | I23: USD | K23: 2653180.68 | L23: A sola firma
A24: Menos: Intereses a Vencer | B24: S/tipo de Negociación | C24: PYG | D24: =IFERROR(VLOOKUP(C24,'Base de Monedas'!A:B,2,0),"") -> Guaraní | E24: -2620739.951 | F24: A sola firma | H24: S/tipo de Negociación | I24: PYG | J24: =IFERROR(VLOOKUP(I24,'Base de Monedas'!G:H,2,0),"") ->  | K24: -4336230.369 | L24: A sola firma
E25: =SUM(E10:E24) -> 29327350.69 | K25: =SUM(K10:K24) -> 26105877
A26: Deudas Financieras con Fideicomiso | D26: =IFERROR(VLOOKUP(C26,'Base de Monedas'!A:B,2,0),"") ->  | J26: =IFERROR(VLOOKUP(I26,'Base de Monedas'!A:B,2,0),"") -> 
A27: (*)Banco Continental - Fideicomiso | B27: 2030-05-15 | C27: PYG | D27: =IFERROR(VLOOKUP(C27,'Base de Monedas'!A:B,2,0),"") -> Guaraní | E27: 3081434.855 | F27: Fideicomiso | H27: 2030-05-15 | I27: PYG | J27: =IFERROR(VLOOKUP(I27,'Base de Monedas'!A:B,2,0),"") -> Guaraní | K27: 2804703.787 | L27: Fideicomiso
A28: (**)Banco Río - Fideicomiso | B28: 2026-05-15 | C28: PYG | D28: =IFERROR(VLOOKUP(C28,'Base de Monedas'!A:B,2,0),"") -> Guaraní | E28: 2475348.253 | F28: Fideicomiso | H28: 2026-05-15 | I28: PYG | J28: =IFERROR(VLOOKUP(I28,'Base de Monedas'!A:B,2,0),"") -> Guaraní | K28: 2362506.465 | L28: Fideicomiso
A29: Menos: Intereses a Vencer Fideicomiso | C29: PYG | D29: =IFERROR(VLOOKUP(C29,'Base de Monedas'!A:B,2,0),"") -> Guaraní | E29: -2371478.217 | F29: Fideicomiso | I29: PYG | J29: =IFERROR(VLOOKUP(I29,'Base de Monedas'!A:B,2,0),"") -> Guaraní | K29: -2419648.819 | L29: Fideicomiso
E30: =SUM(E27:E29) -> 3185304.891 | K30: =SUM(K27:K29) -> 2747561.433
A31: Deudas por Bonos | D31: =IFERROR(VLOOKUP(C31,'Base de Monedas'!A:B,2,0),"") ->  | J31: =IFERROR(VLOOKUP(I31,'Base de Monedas'!A:B,2,0),"") -> 
A32: Bonos Emitidos | B32: 2023-12-13 | C32: PYG | D32: =IFERROR(VLOOKUP(C32,'Base de Monedas'!A:B,2,0),"") -> Guaraní | E32: 7599356.159 | F32: A sola firma | H32: 2023-12-13 | I32: PYG | J32: =IFERROR(VLOOKUP(I32,'Base de Monedas'!A:B,2,0),"") -> Guaraní | K32: 8152835.61 | L32: A sola firma
A33: (-)Intereses no devengados | C33: PYG | D33: =IFERROR(VLOOKUP(C33,'Base de Monedas'!A:B,2,0),"") -> Guaraní | E33: -1598921.848 | F33: A sola firma | I33: PYG | J33: =IFERROR(VLOOKUP(I33,'Base de Monedas'!A:B,2,0),"") -> Guaraní | K33: -2153790.972 | L33: A sola firma
E34: =SUM(E32:E33) -> 6000434.311 | K34: =SUM(K32:K33) -> 5999044.638
A35: Total | D35: =IFERROR(VLOOKUP(C35,'Base de Monedas'!A:B,2,0),"") ->  | E35: =+E34+E30+E25 -> 38513089.89 | K35: =+K34+K30+K25 -> 34852483.07
A36: (*)Fiduciaria Banco Rio S.A.E.C.A.
A37: (**)Fiduciaria Banco Continental S.A.E.C.A.
A39: No Corrientes
B40: 2021-09-30 | H40: 2020-12-31
A41: Préstamos de Entidades Locales | B41: Vencimiento | C41: Símbolo de Moneda | D41: Moneda | E41: Importe (miles de Gs) | F41: Tipo de garantía | H41: Vencimiento | I41: Símbolo de Moneda | J41: Moneda | K41: Importe (miles de Gs) | L41: Tipo de Garantía
A42: Banco Regional S.A.. | B42: S/tipo de Negociación | C42: PYG | D42: =IFERROR(VLOOKUP(C42,'Base de Monedas'!A:B,2,0),"") -> Guaraní | E42: 2974945.196 | F42: A sola firma | H42: S/tipo de Negociación | I42: PYG | J42: =IFERROR(VLOOKUP(I42,'Base de Monedas'!A:B,2,0),"") -> Guaraní | K42: 5912817.012
A43: Financiera El Comercio.. | B43: S/tipo de Negociación | C43: PYG | D43: =IFERROR(VLOOKUP(C43,'Base de Monedas'!A:B,2,0),"") -> Guaraní | E43: 5340268.942 | F43: A sola firma | H43: S/tipo de Negociación | I43: PYG | J43: =IFERROR(VLOOKUP(I43,'Base de Monedas'!A:B,2,0),"") -> Guaraní | K43: 5398432.977
A44: Banco GNB S.A. | B44: S/tipo de Negociación | C44: PYG | D44: =IFERROR(VLOOKUP(C44,'Base de Monedas'!A:B,2,0),"") -> Guaraní | E44: 2313925.48 | F44: A sola firma | H44: S/tipo de Negociación | I44: PYG | J44: =IFERROR(VLOOKUP(I44,'Base de Monedas'!A:B,2,0),"") -> Guaraní | K44: 3462807.367
A45: Visión Banco S.A.. | B45: S/tipo de Negociación | C45: PYG | D45: =IFERROR(VLOOKUP(C45,'Base de Monedas'!A:B,2,0),"") -> Guaraní | E45: 1903094.369 | F45: A sola firma | H45: S/tipo de Negociación | I45: PYG | J45: =IFERROR(VLOOKUP(I45,'Base de Monedas'!A:B,2,0),"") -> Guaraní | K45: 3460171.58
A46: Bancop S.A.. | B46: S/tipo de Negociación | C46: PYG | E46: 706998.218 | F46: A sola firma | H46: S/tipo de Negociación | I46: PYG | K46: 1700622.328
A47: Financiera Rio S.A. | B47: S/tipo de Negociación | C47: PYG | D47: =IFERROR(VLOOKUP(C47,'Base de Monedas'!A:B,2,0),"") -> Guaraní | E47: 184691.595 | F47: A sola firma | H47: S/tipo de Negociación | I47: PYG | J47: =IFERROR(VLOOKUP(I47,'Base de Monedas'!A:B,2,0),"") -> Guaraní | K47: 1015837.095
A48: Financiera Pyo Japonesa. | B48: S/tipo de Negociación | C48: USD | D48: =IFERROR(VLOOKUP(C48,'Base de Monedas'!A:B,2,0),"") -> Dólar estadounidense | E48: 0 | F48: A sola firma | H48: S/tipo de Negociación | I48: USD | J48: =IFERROR(VLOOKUP(I48,'Base de Monedas'!A:B,2,0),"") -> Dólar estadounidense | K48: 1166002.834
A49: Banco BASA S.A.. | B49: S/tipo de Negociación | C49: PYG | D49: =IFERROR(VLOOKUP(C49,'Base de Monedas'!A:B,2,0),"") -> Guaraní | E49: 0 | F49: A sola firma | H49: S/tipo de Negociación | I49: PYG | J49: =IFERROR(VLOOKUP(I49,'Base de Monedas'!A:B,2,0),"") -> Guaraní | K49: 135724.477
A50: Banco Continental S.A.E.C.A.. | B50: S/tipo de Negociación | C50: PYG | E50: 0 | F50: A sola firma | H50: S/tipo de Negociación | I50: PYG | K50: 99930.822
A51: Préstamos de terceros. | B51: S/tipo de Negociación | C51: PYG | E51: 0 | F51: A sola firma | H51: S/tipo de Negociación | I51: PYG | K51: 653260.273
A52: Préstamos de terceros. | B52: S/tipo de Negociación | C52: USD | E52: 901056.343 | F52: A sola firma | H52: S/tipo de Negociación | I52: USD | K52: 0
A53: Menos: Intereses a Vencer.. | B53: S/tipo de Negociación | C53: PYG | E53: -879432.025 | F53: A sola firma | H53: S/tipo de Negociación | I53: PYG | K53: -2372333.147
D54: =IFERROR(VLOOKUP(C54,'Base de Monedas'!A:B,2,0),"") ->  | E54: =SUM(E42:E53) -> 13445548.12 | J54: =IFERROR(VLOOKUP(I54,'Base de Monedas'!A:B,2,0),"") ->  | K54: =SUM(K42:K53) -> 20633273.62
A55: Deudas Financieras con Fideicomiso | D55: =IFERROR(VLOOKUP(C55,'Base de Monedas'!A:B,2,0),"") ->  | J55: =IFERROR(VLOOKUP(I55,'Base de Monedas'!A:B,2,0),"") -> 
A56: (*)Banco Continental - Fideicomiso. | B56: 2030-05-15 | C56: PYG | D56: =IFERROR(VLOOKUP(C56,'Base de Monedas'!A:B,2,0),"") -> Guaraní | E56: 17900077.88 | F56: Fideicomiso | H56: S/tipo de Negociación | I56: PYG | J56: =IFERROR(VLOOKUP(I56,'Base de Monedas'!A:B,2,0),"") -> Guaraní | K56: 20228694.09
A57: (**)Banco Río - Fideicomiso. | B57: 2026-05-15 | C57: PYG | D57: =IFERROR(VLOOKUP(C57,'Base de Monedas'!A:B,2,0),"") -> Guaraní | E57: 9866431.081 | F57: Fideicomiso | H57: S/tipo de Negociación | I57: PYG | J57: =IFERROR(VLOOKUP(I57,'Base de Monedas'!A:B,2,0),"") -> Guaraní | K57: 10603202.96
A58: Menos: Intereses a Vencer Fideicomiso. | C58: PYG | D58: =IFERROR(VLOOKUP(C58,'Base de Monedas'!A:B,2,0),"") -> Guaraní | E58: -7027370.967 | F58: Fideicomiso | H58: S/tipo de Negociación | I58: PYG | K58: -8726966.785
E59: =SUM(E56:E58) -> 20739138 | K59: =SUM(K56:K58) -> 22104930.27
A60: Deudas por Bonos | D60: =IFERROR(VLOOKUP(C60,'Base de Monedas'!A:B,2,0),"") -> 
A61: Bonos Emitidos. | B61: 2023-12-13 | C61: PYG | D61: =IFERROR(VLOOKUP(C61,'Base de Monedas'!A:B,2,0),"") -> Guaraní | E61: 8891301.368 | F61: A sola firma | H61: S/tipo de Negociación | I61: PYG | K61: 14028178.08
A62: (-)Intereses no devengados. | C62: PYG | D62: =IFERROR(VLOOKUP(C62,'Base de Monedas'!A:B,2,0),"") -> Guaraní | E62: -890782.309 | I62: PYG | J62: =IFERROR(VLOOKUP(I62,'Base de Monedas'!A:B,2,0),"") -> Guaraní | K62: -2027222.716
E63: =SUM(E61:E62) -> 8000519.059 | K63: =SUM(K61:K62) -> 12000955.36
A64: Total | D64: =IFERROR(VLOOKUP(C64,'Base de Monedas'!A:B,2,0),"") ->  | E64: =+E63+E59+E54 -> 42185205.17 | J64: =IFERROR(VLOOKUP(I64,'Base de Monedas'!A:B,2,0),"") ->  | K64: =+K63+K59+K54 -> 54739159.25
D65: =IFERROR(VLOOKUP(C65,'Base de Monedas'!A:B,2,0),"") ->  | J65: =IFERROR(VLOOKUP(I65,'Base de Monedas'!A:B,2,0),"") -> 
D66: =IFERROR(VLOOKUP(C66,'Base de Monedas'!A:B,2,0),"") -> 
A67: Total | D67: =IFERROR(VLOOKUP(C67,'Base de Monedas'!A:B,2,0),"") ->  | E67: =+E64+E35 -> 80698295.06 | J67: =IFERROR(VLOOKUP(I67,'Base de Monedas'!A:B,2,0),"") ->  | K67: =+K64+K35 -> 89591642.31
J68: =IFERROR(VLOOKUP(I68,'Base de Monedas'!H:I,2,0),"") -> 

Sheet Nota 15
A1: =Indice!C1 -> PENNER AUTOMOTORES S.R.L. | D1: BG
A5: NOTA 15 – PORCION CORRIENTE DE LA DEUDA A LARGO PLAZO
B7: En miles de guaranies
A8: Porción corriente de la deuda a largo plazo | B8: 2021-09-30 | C8: 2020-12-31
A9: Cuentas por pagar comerciales
A10: Préstamos bancarios
A11: Bonos bursátiles
A12: Intereses bancarios a pagar
A13: Intereses bursatiles a pagar
A14: (nuevas cuentas a incluir)
A15: Total general | B15: =SUM($B$9:B14) -> 0 | C15: =SUM($C$9:C14) -> 0

Sheet Nota 16
A1: =Indice!C1 -> PENNER AUTOMOTORES S.R.L. | F1: BG
A4: NOTA 16 – REMUNERACIONES Y CARGAS SOCIALES A PAGAR
B6: En miles de guaranies
A7: Remuneraciones y cargas sociales a pagar | B7: 2021-09-30 | C7: 2020-12-31
A8: Sueldo y otras remuneraciones a pagar | B8: 151473.734 | C8: 68329.587
A9: Aportes y retenciones a pagar | B9: 76881.421 | C9: 131247.443
A10: Remuneraciones al personal superior a pagar | B10: 15000.003 | C10: 0
A11: Total | B11: =SUM($B$8:B10) -> 243355.158 | C11: =SUM($C$8:C10) -> 199577.03

Sheet Nota 17
A1: =Indice!C1 -> PENNER AUTOMOTORES S.R.L. | G1: BG
A5: NOTA 17 – IMPUESTOS A PAGAR
B7: En miles de guaranies
A8: Impuestos a pagar | B8: 2021-09-30 | C8: 2020-12-31
A9: Impuesto a la renta a pagar | B9: 0 | C9: 0
A10: Otros impuestos a pagar | B10: 160222.938 | C10: 0
A11: Total | B11: =SUM($B$9:B10) -> 160222.938 | C11: =SUM($C$9:C10) -> 0

Sheet Nota 18
A1: =Indice!C1 -> PENNER AUTOMOTORES S.R.L. | D1: BG
A4: NOTA 18 - PROVISIONES
B6: En miles de guaranies
A7: Provisiones | B7: 2021-09-30 | C7: 2020-12-31
A9: Gastos acumulados a pagar | B9: 350231.523 | C9: 0
A10: Honorarios Profesionales a Pagar | B10: 0 | C10: 6000
A11: Provision de Aguinaldos | B11: 163277.059 | C11: 2873.075
A12: Total | B12: =SUM($B$9:B11) -> 513508.582 | C12: =SUM($C$9:C11) -> 8873.075

Sheet Nota 19
A1: =Indice!C1 -> PENNER AUTOMOTORES S.R.L. | D1: BG
A3: NOTA 19 – OTROS PASIVOS CORRIENTES y NO CORRIENTES
A4: En miles de guaranies
A6: Corrientes | B6: 2021-09-30 | C6: 2020-12-31 | E6: No Corrientes | F6: 2021-09-30 | G6: 2020-12-31
A7: Retencion de IVA a pagar | B7: 78248.445 | C7: 71691.014 | E7: Retencion de IVA a pagar
A8: Retencion Impuesto a la renta a Pagar | B8: 0 | C8: 0 | E8: Retencion Impuesto a la renta a Pagar
A9: Impuestos diferidos | B9: 0 | C9: 0 | E9: Impuestos diferidos
A10: Total | B10: =SUM(B7:B9) -> 78248.445 | C10: =SUM(C7:C9) -> 71691.014 | E10: Total | F10: =SUM(F8:F9) -> 0 | G10: =SUM(G8:G9) -> 0

Sheet Nota 20
A1: =Indice!C1 -> PENNER AUTOMOTORES S.R.L. | D1: BG
A4: NOTA 20 – CAPITAL INTEGRADO
A6: Fecha | B6: 2021-09-30 | C6: 2020-12-31
A7: Monto Capital Social (Miles de Gs.) | B7: 38500000 | C7: 38500000
A8: Monto Capital Integrado (Miles de Gs.) | B8: 38500000 | C8: 38500000
A9: Cantidad de Cuotas (Unid.) | B9: 38500 | C9: 38500
A10: Valor Nominal de Cuotas (Miles de Gs.) | B10: 1000 | C10: 1000
A11: Total | B11: =+B8 -> 38500000 | C11: =+C8 -> 38500000

Sheet Nota 21
A1: =Indice!C1 -> PENNER AUTOMOTORES S.R.L. | F1: BG
A4: NOTA 21 – RESERVAS
B6: En miles de guaranies
B7: 2021-09-30 | C7: 2020-12-31
A8: a Reserva de revalúo | B8: 2951187.75 | C8: 2951187.75
A13: b Reserva legal | B13: 1274957.479 | C13: 1274957.479
A17: c Revalúo Tecnico | B17: 1014.632 | C17: 1014.632

Sheet Nota 22
A1: =Indice!C1 -> PENNER AUTOMOTORES S.R.L. | F1: BG
A4: NOTA 21 – DIFERENCIA TRANSITORIA POR CONVERSION
B6: En miles de guaranies
B7: 2021-09-30 | C7: 2020-12-31
A8: Diferencia transitoria por conversión

Sheet Nota 23
A1: =Indice!C1 -> PENNER AUTOMOTORES S.R.L. | F1: BG
A4: NOTA 23 – RESULTADOS ACUMULADOS
B6: En miles de guaranies
B7: 2021-09-30 | C7: 2020-12-31
A8: Resultado de ejercicios anteriores | B8: -4357203.376 | C8: 4865752.614
A9: Resultado del ejercicio actual | B9: -4981632.49 | C9: -9222955.99
A10: Totales | B10: =SUM($B$8:B9) -> -9338835.866 | C10: =SUM($C$8:C9) -> -4357203.376

Sheet Nota 24
A1: =Indice!C1 -> PENNER AUTOMOTORES S.R.L. | F1: BG
A4: NOTA 24 – INTERES MINORITARIO
B6: En miles de guaranies
B7: 2021-09-30 | C7: 2020-12-31
A8: Interes Minoritario

Sheet Nota 25
A1: =Indice!C1 -> PENNER AUTOMOTORES S.R.L. | E1: ER
A5: NOTA 25 – VENTAS
B8: En miles de guaranies
B9: 2021-09-30 | C9: 2020-09-30
A10: Ventas
A11: Ventas Vehiculos
A12: Ventas de Vehiculos | B12: 44045730.45 | C12: 42239333.24
A13: Ingreso por otros Servicios
A14: Servicios Taller | B14: 6160902.358 | C14: 4862513.716
A15: Ingreso por otros Servicios | B15: 3963248.224 | C15: 4745305.775
A17: Total | B17: =SUM($B$11:B16) -> 54169881.03 | C17: =SUM($C$11:C16) -> 51847152.73

Sheet Nota 26
A1: =Indice!C1 -> PENNER AUTOMOTORES S.R.L. | E1: ER
A5: NOTA 26 - COSTO DE VENTAS
B8: Miles de guaraníes
A9: Costo de ventas | B9: 2021-09-30 | C9: 2020-09-30
A10: Costos por Venta de vehiculos
A11: Costo de vehiculos | B11: 38775417.53 | C11: 36616537.52
A12: Gastos de gestion judicial | B12: 49346.626 | C12: 39896.431
A13: Gestion de cobranzas | B13: 38170.713 | C13: 14162.881
A15: Costos por otros servicios
A16: Costo de venta taller | B16: 3463368.334 | C16: 2678908.077
A17: Remuneraciones taller | B17: 1195468.492 | C17: 955393.758
A18: Comisiones pagadas taller | B18: 139296.095 | C18: 113212.282
A19: Alquileres pagados | B19: 87272.73 | C19: 85909.095
A20: Electricidad, agua y teléfono | B20: 16083.001 | C20: 15558.934
A21: Combustible y lubricante | B21: 36547.894 | C21: 38264.262
A22: Cargas sociales taller | B22: 195403.588 | C22: 145978.801
A23: Insumos varios | B23: 39191.455 | C23: 28312.814
A24: Total costo de ventas | B24: =SUM($B$10:B23) -> 44035566.45 | C24: =SUM($C$10:C23) -> 40732134.85

Sheet Nota 27
A1: =Indice!C1 -> PENNER AUTOMOTORES S.R.L. | G1: ER
A5: NOTA 27 - GASTOS
A7: El rubro está compuesto de la siguiente forma:
A9: Miles de guaraníes
C10: 2021-09-30 | F10: 2020-09-30
B11: Gastos de Ventas | C11: Gastos Administrativos | D11: Total | E11: Gastos de Ventas | F11: Gastos Administrativos | G11: Total
A12: Gastos varios de Ventas | B12: 860843.543 | C12: 0 | D12: =+C12+B12 -> 860843.543 | E12: 1188663.032 | F12: 0 | G12: =+F12+E12 -> 1188663.032
A13: Gastos de alquiler | B13: 0 | C13: 270020.645 | D13: =+C13+B13 -> 270020.645 | E13: 0 | F13: 285120.682 | G13: =+F13+E13 -> 285120.682
A14: Gastos de Publicidad | B14: 162202.442 | C14: 0 | D14: =+C14+B14 -> 162202.442 | E14: 173534.578 | F14: 0 | G14: =+F14+E14 -> 173534.578
A15: Computación y redes | B15: 0 | C15: 28493.111 | D15: =+C15+B15 -> 28493.111 | E15: 0 | F15: 12827.578 | G15: =+F15+E15 -> 12827.578
A16: Gastos por servicios | B16: 0 | C16: 1122975.577 | D16: 1122975.577 | E16: 0 | F16: 1062461.444 | G16: 1062461.444
A17: Honorarios profesionales y asesoramiento | B17: 0 | C17: 544512.582 | D17: 544512.582 | E17: 0 | F17: 452439.762 | G17: 452439.762
A18: Comisiones Pagadas | B18: 599579.86 | C18: 0 | D18: 599579.86 | E18: 531955.971 | F18: 0 | G18: 531955.971
A19: Impuestos y tasas | B19: 0 | C19: 177480.964 | D19: 177480.964 | E19: 0 | F19: 185113.993 | G19: 185113.993
A20: Gastos de reparación y mantenimiento | B20: 0 | C20: 259309.643 | D20: 259309.643 | E20: 0 | F20: 235283.172 | G20: 235283.172
A21: Gastos del personal y capacitación | B21: 0 | C21: 20412.026 | D21: 20412.026 | E21: 0 | F21: 25354.521 | G21: 25354.521
A22: Seguros pagados | B22: 0 | C22: 77301.145 | D22: 77301.145 | E22: 0 | F22: 99450.914 | G22: 99450.914
A23: Gastos Generales | B23: 0 | C23: 1612684.256 | D23: 1612684.256 | E23: 0 | F23: 663703.009 | G23: 663703.009
A24: Remuneraciones de administradores, directores, síndicos y consejo de vigilancia | B24: 0 | C24: 221680.003 | D24: 221680.003 | E24: 0 | F24: 333916.341 | G24: 333916.341
A25: Sueldos y Jornales | B25: 0 | C25: 871552.887 | D25: 871552.887 | E25: 0 | F25: 1530410.747 | G25: 1530410.747
A26: Contribuciones Sociales | B26: 0 | C26: 172537.868 | D26: 172537.868 | E26: 0 | F26: 266558.198 | G26: 266558.198
A27: Combustibles y Lubricantes | B27: 0 | C27: 54562.013 | D27: 54562.013 | E27: 0 | F27: 50776.367 | G27: 50776.367
A28: Servicios Basicos | B28: 0 | C28: 162415.115 | D28: 162415.115 | E28: 0 | F28: 156703.519 | G28: 156703.519
A29: Intereses, multas y recargos impositivos | B29: 0 | C29: 3367.23 | D29: 3367.23 | E29: 0 | F29: 400 | G29: 400
A30: Depreciación bienes de uso | B30: 0 | C30: 539343.795 | D30: 539343.795 | E30: 0 | F30: 725072.535 | G30: 725072.535
A31: Amortización activos intangibles | B31: 0 | C31: 34854.129 | D31: 34854.129 | E31: 0 | F31: 28583.187 | G31: 28583.187
A32: Previsiones | B32: 0 | C32: 0 | D32: 0 | E32: 0 | F32: 0 | G32: 0
A33: Total | B33: =+SUM($B$12:B32) -> 1622625.845 | C33: =+SUM($C$12:C32) -> 6173502.989 | D33: =+SUM($D$12:D32) -> 7796128.834 | E33: =+SUM($E$12:E32) -> 1894153.581 | F33: =+SUM($F$12:F32) -> 6114175.969 | G33: =+SUM($G$12:G32) -> 8008329.55

Sheet Nota 28
A1: =Indice!C1 -> PENNER AUTOMOTORES S.R.L. | E1: ER
A4: Nota 28 - Otros Ingresos y gastos operativos
A6: Miles de guaraníes
A8: Otros ingresos | B8: 2021-09-30 | C8: 2020-09-30 | E8: Otros gastos | F8: =+B8 -> 2021-09-30 | G8: =+C8 -> 2020-09-30
A15: Total | B15: =SUM($B$9:B14) -> 0 | C15: =SUM($C$9:C14) -> 0 | E15: Total | F15: =SUM($F$9:F14) -> 0 | G15: =SUM($G$9:G14) -> 0

Sheet Nota 29
A1: =Indice!C1 -> PENNER AUTOMOTORES S.R.L. | E1: ER
A5: NOTA 29 - INGRESOS Y GASTOS FINANCIEROS NETOS
A6: Miles de guaraníes
A8: Ingresos Financieros netos | B8: 2021-09-30 | C8: 2020-09-30 | E8: Gastos Financieros netos | F8: =+B8 -> 2021-09-30 | G8: =+C8 -> 2020-09-30
A9: Intereses ganados | B9: 892619.783 | C9: 1201075.37 | E9: Intereses perdidos | F9: 8339108.241 | G9: 10085502.69
A10: Diferencia de cambio | B10: 0 | C10: 966575.678 | E10: Gastos financieros | F10: 62385.935 | G10: 279170.257
E11: Diferencia de cambio | F11: -40665.045 | G11: 0
A13: Total ingresos financieros | B13: =SUM($B9:B11) -> 892619.783 | C13: =SUM($C9:C11) -> 2167651.048 | E13: Total gastos financieros | F13: =SUM($F9:F11) -> 8360829.131 | G13: =SUM($G9:G11) -> 10364672.94

Sheet Nota 30
A1: =Indice!C1 -> PENNER AUTOMOTORES S.R.L. | E1: ER
A4: Nota 34 - Resultados Diversos
A5: Miles de guaraníes
A8: Resultados Diversos | B8: 2021-09-30 | C8: 2020-09-30
A9: Resultados por venta de bienes de uso | B9: 148391.117 | C9: -15873.762
A10: Resultado por venta de las inversiones inmuebles | B10: 0 | C10: 0
A11: Total | B11: =SUM($B9:B10) -> 148391.117 | C11: =SUM($C9:C10) -> -15873.762

Sheet Nota 31
A1: =Indice!C1 -> PENNER AUTOMOTORES S.R.L. | E1: ER
A4: Nota 31 - Resultado participación minoritaria
A5: Miles de guaraníes
A8: Resultado participación minoritaria | B8: 2021-09-30 | C8: 2020-09-30
A13: Total | B13: =SUM($B9:B12) -> 0 | C13: =SUM($C9:C12) -> 0

Sheet Nota 32
A1: =Indice!C1 -> PENNER AUTOMOTORES S.R.L. | E1: ER
A4: Nota 32 - IMPUESTO A LA RENTA
A5: En miles de guaraníes
B7: 2021-09-30 | C7: 2020-09-30
A8: Impuesto a la renta
A11: Total | B11: =SUM($B8:B10) -> 0 | C11: =SUM($C8:C10) -> 0
A14: Las operaciones de la Sociedad, en general, están gravadas por el impuesto a la renta empresarial (IRE) cuya tasa general es del 10%.

Sheet Nota 33
A1: =Indice!C1 -> PENNER AUTOMOTORES S.R.L. | E1: ER
A4: Nota 33 - Resultado extraordinario neto de impuesto a la renta
A5: En miles de guaraníes
B7: 2021-09-30 | C7: 2020-09-30
A8: Conceptos
A11: Total | B11: =SUM($B8:B10) -> 0 | C11: =SUM($C8:C10) -> 0

Sheet Nota 34
A1: =Indice!C1 -> PENNER AUTOMOTORES S.R.L. | E1: ER
A4: Nota 34 - Resultado sobre actividades discontinuadas neto de impuesto a la renta
A5: En miles de guaraníes
A7: Resultado sobre actividades discontinuadas neto de impuesto a la renta | B7: 2021-09-30 | C7: 2020-09-30
A10: Subtotal
A11: - Impuesto a la renta
A12: Total | B12: =SUM($B8:B11) -> 0 | C12: =SUM($C8:C11) -> 0

Sheet Nota 35
A1: =Indice!C1 -> PENNER AUTOMOTORES S.R.L. | E1: ER
A4: NOTA 35- UTILIDAD (PÉRDIDA) NETA DEL AÑO Y POR ACCION ORDINARIA
A5: La Sociedad calcula la utilidad (pérdida) neta por acción sobre la base de la utilidad (pérdida) del año y … acciones ordinarias (aclarar las características de las acciones) de valor nominal G/ …cada una con derecho a … voto por acción (aclarar el derecho de voto que tiene cada tipo de acción).
B7: 2021-09-30 | C7: 2020-09-30
A8: Cantidad de Acciones Ordinarias en Circulación | B8: 0 | C8: 0
A9: Utilidad Neta | B9: =ER!C31 -> 0 | C9: =ER!D31 -> 0
A10: Utilidad Neta por Acción Ordinaria | B10: =IFERROR(B9/B8,0) -> 0 | C10: =IFERROR(C9/C8,0) -> 0

Sheet Nota 36
A1: =Indice!C1 -> PENNER AUTOMOTORES S.R.L. | D1: Indice
A4: NOTA 36 - ACTIVOS GRAVADOS
A6: Los inmuebles en Fideicomiso con Bancio Rio como Fiduciaria y Banco Continental como Beneficiario a 20 años, los mismos están ubicadas en el Distrito de Santísima Trinidad y son los siguientes:
A8: =IFERROR("Al "&DAY(Indice!B6)&" de "&VLOOKUP(MONTH(Indice!B6),Indice!S:T,2,0)&" de "&YEAR(Indice!B6-1),"Al dia... de mes… de año 2XX2…") -> Al 30 de Septiembre de 2021
A9: Tipo de Activo | B9: C.C.Ctral. | C9: Importe Gs.
A10: Inmueble Transchaco y Yaguaron | B10: 15-1221-06 | C10: 1398113198
A11: Inmueble Yaguaron c/Transchaco | B11: 15-1222-03 | C11: 912273483.7
A12: Inmueble Yaguaron c/Ruta Transchaco | B12: 15-1221-02 | C12: 810186502.3
A13: Inmueble Yaguaron c/Transchaco | B13: 15-1222-04 | C13: 914430980.8
A14: Inmueble Transchaco y Yaguaron | B14: 15-0211-14 | C14: 1.465944828e+10
A15: Inmueble Yaguaron c/Transchaco | B15: 15-1221-05 | C15: 813337194.7
A16: Inmueble Yaguaron c/Transchaco | B16: 15-1221-03 | C16: 818199194.7
A17: Inmueble Yaguaron c/Transchaco | B17: 15-1221-04 | C17: 813271194.7
A18: Construcciones y Mejoras | C18: 6239508213
A19: Total | C19: =SUM(C10:C18) -> 2.737876824e+10
A21: =IFERROR("Al "&DAY(Indice!B6)&" de "&VLOOKUP(MONTH(Indice!B6),Indice!S:T,2,0)&" de "&YEAR(Indice!B6-365),"Al dia... de mes… de año 2XX1…") -> Al 30 de Septiembre de 2020
A22: Tipo de Activo | B22: C.C.Ctral. | C22: Importe Gs.
A23: Inmueble Transchaco y Yaguaron | B23: 15-1221-06 | C23: 1398113198
A24: Inmueble Yaguaron c/Transchaco | B24: 15-1222-03 | C24: 912273483.7
A25: Inmueble Yaguaron c/Ruta Transchaco | B25: 15-1221-02 | C25: 810186502.3
A26: Inmueble Yaguaron c/Transchaco | B26: 15-1222-04 | C26: 914430980.8
A27: Inmueble Transchaco y Yaguaron | B27: 15-0211-14 | C27: 1.465944828e+10
A28: Inmueble Yaguaron c/Transchaco | B28: 15-1221-05 | C28: 813337194.7
A29: Inmueble Yaguaron c/Transchaco | B29: 15-1221-03 | C29: 818199194.7
A30: Inmueble Yaguaron c/Transchaco | B30: 15-1221-04 | C30: 813271194.7
A31: Construcciones y Mejoras | C31: 6707382344
A32: Total | C32: =SUM(C23:C31) -> 2.784664237e+10

Sheet Nota 37
A1: =Indice!C1 -> PENNER AUTOMOTORES S.R.L. | E1: Indice
A4: NOTA 37 - CONTINGENCIAS Y COMPROMISOS
A6: =IFERROR("Los principales contratos suscriptos por la Sociedad, vigentes al "&DAY(Indice!B6)&" de "&VLOOKUP(MONTH(Indice!B6),Indice!S:T,2,0)&" de "&YEAR(Indice!B6-1)&" son:","Los principales contratos suscriptos por la Sociedad, vigentes al … de … 20X2 son:") -> Los principales contratos suscriptos por la Sociedad, vigentes al 30 de Septiembre de 2021 son:
A7: a. Compromisos Socios
A9: A la fecha de emisión de los presentes estados financieros la Sociedad no posee compromisos de los Socios.
A11: b. Contingencias legales
A13: A la fecha de emisión de los presentes estados contables la Sociedad no registra juicios u otras acciones legales que pudieran producir variaciones sobre los importes reportados como saldos al cierre.
A15: c. Garantías constituidas
A17: A la fecha del presente informe la Sociedad no posee Garantías constituidas.
A19: Obs.: Esta información debe estar ajustada a lo requerido por la Norma de Información Financiera N° 5 Contingencias y sucesos que ocurren después de la fecha del balance.

Sheet Nota 38
A1: =Indice!C1 -> PENNER AUTOMOTORES S.R.L. | D1: Índice
A4: NOTA 38 - IMPUESTO DIFERIDO
A5: En miles de guaraníes
A6: Al … de …........... 20X2 la Sociedad constituyó una provisión para impuesto a la renta de Guaraníes …... (Al … de …...............20X1: Guaraníes …....) / (La Sociedad no ha constituido provisión para impuesto a la renta, debido a que a esa fecha la misma generó renta imponible que fue compensada con quebrantos impositivos acumulados a esa fecha).
A7: La Sociedad contabiliza el impuesto a la renta por el método de lo diferido, método del pasivo. El mencionado método establece la determinación de activos o pasivos impositivos diferidos netos basados en las diferencias temporales y temporarias, con cargo a la línea Impuesto a la renta del Estado de resultados.
A9: El siguiente cuadro detalla las diferencias temporales a la tasa del impuesto a los efectos de determinación del impuesto diferido:
B11: 2021-09-30 | C11: 2020-09-30
A12: Activos y pasivos impositivos diferidos:
A13: Caja y Bancos
A14: Inversiones
A15: Previsión para deudores incobrables
A16: Bienes de uso
A17: Activos intangibles
A18: Previsión del pasivo
A19: Deudas comerciales y bancarias
A20: Bienes de cambio
A21: Sub - total
A22: Previsión para impuestos diferidos netos
A23: Total activo/pasivo impositivo diferido neto antes de quebrantos
A24: Quebranto impositivo
A25: Total

Sheet Nota 39
A1: =Indice!C1 -> PENNER AUTOMOTORES S.R.L. | E1: Indice
A5: NOTA 39 - HECHOS POSTERIORES
A7: Entre la fecha de cierre del ejercicio y la fecha de preparación de estos estados financieros, no han ocurrido hechos significativos de carácter financiero o de otra índole que afecten la situación patrimonial o financiera o los resultados de la Sociedad al 30 de setiembre de 2021.

Sheet Nota 40
A1: =Indice!C1 -> PENNER AUTOMOTORES S.R.L. | C1: Indice
A5: NOTA 40 - SALDOS Y TRANSACCIONES CON PARTES RELACIONADAS
A6: Miles de guaraníes
A8: a). Saldos
A9: Nombre | B9: Relación | C9: Cuenta Contable | D9: 2021-09-30 | E9: 2020-09-30
A10: Activo Corriente
A11: Nordland S.A. | B11: Sociedad Vinculada | C11: Otros créditos | D11: 7945101.414 | E11: 2305377.719
A12: Nordland S.A. | B12: Sociedad Vinculada | C12: Otros créditos | D12: 4866466.181 | E12: 3904036.028
A13: Total Activo Corriente | D13: =SUM(D11:D12) -> 12811567.59 | E13: =SUM(E11:E12) -> 6209413.747
A14: Activo no Corriente
A15: Orlando Penner | B15: Persona vinculada | C15: Inversiones en inmuebles | D15: 8856847.818 | E15: 8856847.818
A16: Nordland S.A. | B16: Sociedad Vinculada | C16: Inversiones en inmuebles | D16: 4365152.331 | E16: 5310858.759
A17: Nordland S.A. | B17: Sociedad Vinculada | C17: Otros créditos | D17: 5392269.732 | E17: 9379809.885
A18: Total Activo no Corriente | D18: =SUM(D15:D17) -> 18614269.88 | E18: =SUM(E15:E17) -> 23547516.46
A19: Total Activo | D19: =+D13+D18 -> 31425837.48 | E19: =+E13+E18 -> 29756930.21
A21: Pasivo
A22: Nordland S.A. | B22: Sociedad Vinculada | C22: Deudas financieras | D22: 0 | E22: 0
A23: Orlando Penner | B23: Persona vinculada | C23: Deudas financieras | D23: 7145000 | E23: 0
A24: Total Pasivo | D24: =SUM(D22:D23) -> 7145000 | E24: =SUM(E22:E23) -> 0
A28: b). Transacciones
A29: Nombre | B29: Relación | C29: Cuenta Contable | D29: =+D9 -> 2021-09-30 | E29: =+E9 -> 2020-09-30
A31: Ingresos
A32: Nordland S.A. | B32: Sociedad Vinculada | C32: Intereses ganados | D32: 494044.629 | E32: 491271.484
A33: Nordland S.A. | B33: Sociedad Vinculada | C33: Venta de Inversiones Inmuebles | D33: 589601 | E33: 0
A34: Nordland S.A. | B34: Sociedad Vinculada | C34: Venta de Vehiculos | D34: 636025.185 | E34: 0
A35: Total Ingresos | D35: =SUM(D32:D34) -> 1719670.814 | E35: =SUM(E32:E34) -> 491271.484
A37: Egresos
A38: Orlando Penner | B38: Persona vinculada | C38: Remuneracion Directores | D38: 180000 | E38: 249954.546
A39: Ronald Dürksen | B39: Persona vinculada | C39: Remuneracion Directores | D39: 26680 | E39: 60352
A40: Total Pasivo | D40: =SUM(D38:D39) -> 206680 | E40: =SUM(E38:E39) -> 310306.546

Sheet Base de Monedas
A1: PYG | B1: Guaraní | C1: Índice
A2: USD | B2: Dólar estadounidense
A3: EUR | B3: Euro
A4: AED | B4: Dírham de los Emiratos Árabes Unidos
A5: AFN | B5: Afgani
A6: ALL | B6: Lek
A7: AMD | B7: Dram armenio
A8: ANG | B8: Florín antillano neerlandés
A9: AOA | B9: Kwanza
A10: ARS | B10: Peso argentino
A11: AUD | B11: Dólar australiano
A12: AWG | B12: Florín arubeño
A13: AZN | B13: Manat azerbaiyano
A14: BAM | B14: Marco convertible
A15: BBD | B15: Dólar de Barbados
A16: BDT | B16: Taka
A17: BGN | B17: Lev búlgaro
A18: BHD | B18: Dinar bareiní
A19: BIF | B19: Franco de Burundi
A20: BMD | B20: Dólar bermudeño
A21: BND | B21: Dólar de Brunéi
A22: BOB | B22: Boliviano
A23: BOV | B23: MVDOL
A24: BRL | B24: Real brasileño
A25: BSD | B25: Dólar bahameño
A26: BTN | B26: Ngultrum
A27: BWP | B27: Pula
A28: BYN | B28: Rublo bielorruso
A29: BZD | B29: Dólar beliceño
A30: CAD | B30: Dólar canadiense
A31: CDF | B31: Franco congoleño
A32: CHE | B32: Euro WIR
A33: CHF | B33: Franco suizo
A34: CHW | B34: Franco WIR
A35: CLF | B35: Unidad de fomento
A36: CLP | B36: Peso chileno
A37: CNY | B37: Yuan chino
A38: COP | B38: Peso colombiano
A39: COU | B39: Unidad de valor real
A40: CRC | B40: Colón costarricense
A41: CUC | B41: Peso convertible
A42: CUP | B42: Peso cubano
A43: CVE | B43: Escudo caboverdiano
A44: CZK | B44: Corona checa
A45: DJF | B45: Franco yibutiano
A46: DKK | B46: Corona danesa
A47: DOP | B47: Peso dominicano
A48: DZD | B48: Dinar argelino
A49: EGP | B49: Libra egipcia
A50: ERN | B50: Nakfa
A51: ETB | B51: Birr etíope
A52: FJD | B52: Dólar fiyiano
A53: FKP | B53: Libra malvinense
A54: GBP | B54: Libra esterlina
A55: GEL | B55: Lari
A56: GHS | B56: Cedi ghanés
A57: GIP | B57: Libra de Gibraltar
A58: GMD | B58: Dalasi
A59: GNF | B59: Franco guineano
A60: GTQ | B60: Quetzal
A61: GYD | B61: Dólar guyanés
A62: HKD | B62: Dólar de Hong Kong
A63: HNL | B63: Lempira
A64: HRK | B64: Kuna
A65: HTG | B65: Gourde
A66: HUF | B66: Forinto
A67: IDR | B67: Rupia indonesia
A68: ILS | B68: Nuevo shéquel israelí
A69: INR | B69: Rupia india
A70: IQD | B70: Dinar iraquí
A71: IRR | B71: Rial iraní
A72: ISK | B72: Corona islandesa
A73: JMD | B73: Dólar jamaiquino
A74: JOD | B74: Dinar jordano
A75: JPY | B75: Yen
A76: KES | B76: Chelín keniano
A77: KGS | B77: Som
A78: KHR | B78: Riel
A79: KMF | B79: Franco comorense
A80: KPW | B80: Won norcoreano
A81: KRW | B81: Won
A82: KWD | B82: Dinar kuwaití
A83: KYD | B83: Dólar de las Islas Caimán
A84: KZT | B84: Tenge
A85: LAK | B85: Kip
A86: LBP | B86: Libra libanesa
A87: LKR | B87: Rupia de Sri Lanka
A88: LRD | B88: Dólar liberiano
A89: LSL | B89: Loti
A90: LYD | B90: Dinar libio
A91: MAD | B91: Dírham marroquí
A92: MDL | B92: Leu moldavo
A93: MGA | B93: Ariary malgache
A94: MKD | B94: Denar
A95: MMK | B95: Kyat
A96: MNT | B96: Tugrik
A97: MOP | B97: Pataca
A98: MRU | B98: Uguiya
A99: MUR | B99: Rupia de Mauricio
A100: MVR | B100: Rufiyaa
A101: MWK | B101: Kwacha
A102: MXN | B102: Peso mexicano
A103: MXV | B103: Unidad de Inversión (UDI) mexicana
A104: MYR | B104: Ringgit malayo
A105: MZN | B105: Metical mozambiqueño
A106: NAD | B106: Dólar namibio
A107: NGN | B107: Naira
A108: NIO | B108: Córdoba
A109: NOK | B109: Corona noruega
A110: NPR | B110: Rupia nepalí
A111: NZD | B111: Dólar neozelandés
A112: OMR | B112: Rial omaní
A113: PAB | B113: Balboa
A114: PEN | B114: Sol
A115: PGK | B115: Kina
A116: PHP | B116: Peso filipino
A117: PKR | B117: Rupia pakistaní
A118: PLN | B118: Złoty
A119: QAR | B119: Riyal qatarí
A120: RON | B120: Leu rumano
A121: RSD | B121: Dinar serbio
A122: RUB | B122: Rublo ruso
A123: RWF | B123: Franco ruandés
A124: SAR | B124: Riyal saudí
A125: SBD | B125: Dólar de las Islas Salomón
A126: SCR | B126: Rupia seychelense
A127: SDG | B127: Dinar sudanés
A128: SEK | B128: Corona sueca
A129: SGD | B129: Dólar de Singapur
A130: SHP | B130: Libra de Santa Elena
A131: SLL | B131: Leone
A132: SOS | B132: Chelín somalí
A133: SRD | B133: Dólar surinamés
A134: SSP | B134: Libra sursudanesa
A135: STN | B135: Dobra
A136: SVC | B136: Colon Salvadoreño
A137: SYP | B137: Libra siria
A138: SZL | B138: Lilangeni
A139: THB | B139: Baht
A140: TJS | B140: Somoni tayiko
A141: TMT | B141: Manat turcomano
A142: TND | B142: Dinar tunecino
A143: TOP | B143: Paʻanga
A144: TRY | B144: Lira turca
A145: TTD | B145: Dólar de Trinidad y Tobago
A146: TWD | B146: Nuevo dólar taiwanés
A147: TZS | B147: Chelín tanzano
A148: UAH | B148: Grivna
A149: UGX | B149: Chelín ugandés
A150: USN | B150: Dólar estadounidense (Siguiente día)
A151: UYI | B151: Peso en Unidades Indexadas (Uruguay)
A152: UYU | B152: Peso uruguayo
A153: UYW | B153: Unidad Previsional
A154: UZS | B154: Som uzbeko
A155: VES7​ | B155: Bolívar soberano
A156: VND | B156: Dong vietnamita
A157: VUV | B157: Vatu
A158: WST | B158: Tala
A159: XAF | B159: Franco CFA de África Central
A160: XAG | B160: Plata (una onza troy)
A161: XAU | B161: Oro (una onza troy)
A162: XBA | B162: Unidad compuesta europea (EURCO) (Unidad del mercados de bonos)
A163: XBB | B163: Unidad Monetaria europea (E.M.U.-6) (Unidad del mercado de bonos)
A164: XBC | B164: Unidad europea de cuenta 9 (E.U.A.-9) (Unidad del mercado de bonos)
A165: XBD | B165: Unidad europea de cuenta 17 (E.U.A.-17) (Unidad del mercado de bonos)
A166: XCD | B166: Dólar del Caribe Oriental
A167: XDR | B167: Derechos especiales de giro
A168: XOF | B168: Franco CFA de África Occidental
A169: XPD | B169: Paladio (una onza troy)
A170: XPF | B170: Franco CFP
A171: XPT | B171: Platino (una onza troy)
A172: XSU | B172: SUCRE
A173: XTS | B173: Reservado para pruebas
A174: XUA | B174: Unidad de cuenta BAD
A175: XXX | B175: Sin divisa
A176: YER | B176: Rial yemení
A177: ZAR | B177: Rand
A178: ZMW | B178: Kwacha zambiano
A179: ZWL | B179: Dólar zimbabuense
